{"text_format":"1","workbook":"xlsx","n_sheets":5,"sheets":["Списки УОП","ЖУВР","ИДР","ИКРР","ГКРР"],"not_rendered":{"charts":0,"images":0,"macros":1,"external_links":3,"defined_names":6,"comments":0,"pivot_tables":0},"unopened":[],"bounds":{"document_bytes":16777216,"sheet_cells":100000,"rows_first":2000,"rows_last":500,"rows_between":2000,"halvings":0,"cell_chars":16384,"cell_head_chars":4096},"cells_cut":0,"cells_raw":0,"read":"whole","date_system":"1900"}

{"sheet":"Списки УОП","index":0,"n_rows":302,"n_cols":9,"rows_kept":302,"cut":false,"hidden":false,"merged":[[2,0,2,8]]}
[null,"выкл ","подстветку","вкл"]
[]
["общий список детей"]
["№ ","группа","код","возраст","пол","фамилия","имя","Столбец1","код нарушения"]
[1,10,{"$f":"CONCATENATE(LEFT(F5),LEFT(G5),LEFT(список_детей[[#This Row],[Столбец1]]))","v":"ЯГМ"},"5-6 лет","д","Ясеневский","Григорий","Миронович","ТНР"]
[2,10,{"$f":"CONCATENATE(LEFT(F6),LEFT(G6),LEFT(список_детей[[#This Row],[Столбец1]]))","v":"НАП"},"5-6 лет","д","Носатенко","Адам","Прокофиевич","ТНР"]
[3,10,{"$f":"CONCATENATE(LEFT(F7),LEFT(G7),LEFT(список_детей[[#This Row],[Столбец1]]))","v":"БДМ"},"5-6 лет","м","Бузинский","Даниил","Мечиславович","ТНР"]
[4,10,{"$f":"CONCATENATE(LEFT(F8),LEFT(G8),LEFT(список_детей[[#This Row],[Столбец1]]))","v":"ДВА"},"5-6 лет","м","Дудника","Виктория","Анатолиевна","ТНР"]
[5,10,{"$f":"CONCATENATE(LEFT(F9),LEFT(G9),LEFT(список_детей[[#This Row],[Столбец1]]))","v":"НПГ"},"5-6 лет","м","Никоненко","Петр","Георгиевич","ТНР"]
[6,10,{"$f":"CONCATENATE(LEFT(F10),LEFT(G10),LEFT(список_детей[[#This Row],[Столбец1]]))","v":"ПМС"},"5-6 лет","д","Поветникова","Маргарита","Серафимовна","ТНР"]
[7,10,{"$f":"CONCATENATE(LEFT(F11),LEFT(G11),LEFT(список_детей[[#This Row],[Столбец1]]))","v":"РГА"},"5-6 лет","д","Рябов","Глеб","Андриянович","ТНР"]
[8,10,{"$f":"CONCATENATE(LEFT(F12),LEFT(G12),LEFT(список_детей[[#This Row],[Столбец1]]))","v":"КОЛ"},"5-6 лет","д","Колбенев","Остап","Леонтиевич","ТНР"]
[9,10,{"$f":"CONCATENATE(LEFT(F13),LEFT(G13),LEFT(список_детей[[#This Row],[Столбец1]]))","v":"ЯМП"},"5-6 лет","д","Яворов","Мир","Прокофиевич","ТНР"]
[10,10,{"$f":"CONCATENATE(LEFT(F14),LEFT(G14),LEFT(список_детей[[#This Row],[Столбец1]]))","v":"НЕЗ"},"5-6 лет","м","Низамутдинов","Егор","Захарович","ТНР"]
[11,10,{"$f":"CONCATENATE(LEFT(F15),LEFT(G15),LEFT(список_детей[[#This Row],[Столбец1]]))","v":"ЖАИ"},"5-6 лет","м","Жиренкова","Анна","Ивановна","ТНР"]
[12,10,{"$f":"CONCATENATE(LEFT(F16),LEFT(G16),LEFT(список_детей[[#This Row],[Столбец1]]))","v":"АВМ"},"5-6 лет","м","Аленина","Варвара","Мироновна","ТНР"]
[13,10,{"$f":"CONCATENATE(LEFT(F17),LEFT(G17),LEFT(список_детей[[#This Row],[Столбец1]]))","v":"ЧКД"},"5-6 лет","д","Чебыкина","Ксения","Давидовна","ТНР"]
[14,15,{"$f":"CONCATENATE(LEFT(F18),LEFT(G18),LEFT(список_детей[[#This Row],[Столбец1]]))","v":"ССЯ"},"5-6 лет","м","Сайбаталова","Стела","Яновна","УО"]
[15,15,{"$f":"CONCATENATE(LEFT(F19),LEFT(G19),LEFT(список_детей[[#This Row],[Столбец1]]))","v":"ГРЧ"},"5-6 лет","д","Гарф","Рюрик","Чеславович","УО"]
[16,15,{"$f":"CONCATENATE(LEFT(F20),LEFT(G20),LEFT(список_детей[[#This Row],[Столбец1]]))","v":"ЭАН"},"5-6 лет","д","Элинский","Артур","Натанович","УО"]
[17,15,{"$f":"CONCATENATE(LEFT(F21),LEFT(G21),LEFT(список_детей[[#This Row],[Столбец1]]))","v":"ЯГЕ"},"5-6 лет","д","Янченко","Герасим","Евлампиевич","УО"]
[18,15,{"$f":"CONCATENATE(LEFT(F22),LEFT(G22),LEFT(список_детей[[#This Row],[Столбец1]]))","v":"СМП"},"5-6 лет","м","Селезнева","Мирослава","Петровна","УО"]
[19,15,{"$f":"CONCATENATE(LEFT(F23),LEFT(G23),LEFT(список_детей[[#This Row],[Столбец1]]))","v":"ЮЛВ"},"5-6 лет","д","Юрлова","Лариса","Всеволодовна","УО"]
[20,15,{"$f":"CONCATENATE(LEFT(F24),LEFT(G24),LEFT(список_детей[[#This Row],[Столбец1]]))","v":"БЛИ"},"5-6 лет","м","Бобылев","Лавр","Иосифович","УО"]
[21,15,{"$f":"CONCATENATE(LEFT(F25),LEFT(G25),LEFT(список_детей[[#This Row],[Столбец1]]))","v":"ЛРТ"},"5-6 лет","д","Логвинов","Ростислав","Тарасович","ОДА"]
[22,13,{"$f":"CONCATENATE(LEFT(F26),LEFT(G26),LEFT(список_детей[[#This Row],[Столбец1]]))","v":"ШАЧ"},"5-6 лет","м","Шагубатов","Артур","Чеславович","ОДА"]
[23,13,{"$f":"CONCATENATE(LEFT(F27),LEFT(G27),LEFT(список_детей[[#This Row],[Столбец1]]))","v":"ЮПГ"},"5-6 лет","д","Юбкин","Павел","Григориевич","ОДА"]
[24,13,{"$f":"CONCATENATE(LEFT(F28),LEFT(G28),LEFT(список_детей[[#This Row],[Столбец1]]))","v":"КСФ"},"5-6 лет","д","Каблукова","Светлана","Филипповна","ОДА"]
[25,13,{"$f":"CONCATENATE(LEFT(F29),LEFT(G29),LEFT(список_детей[[#This Row],[Столбец1]]))","v":"ЛАЛ"},"5-6 лет","д","Лепёхин","Алексей","Левович","ОДА"]
[26,13,{"$f":"CONCATENATE(LEFT(F30),LEFT(G30),LEFT(список_детей[[#This Row],[Столбец1]]))","v":"ШВЕ"},"5-6 лет","м","Шверник","Виталий","Еремеевич","ЗПР"]
[27,5,{"$f":"CONCATENATE(LEFT(F31),LEFT(G31),LEFT(список_детей[[#This Row],[Столбец1]]))","v":"БХН"},"5-6 лет","м","Белова","Христина","Николаевна","ЗПР"]
[28,5,{"$f":"CONCATENATE(LEFT(F32),LEFT(G32),LEFT(список_детей[[#This Row],[Столбец1]]))","v":"УВЕ"},"5-6 лет","д","Уголев","Викентий","Елизарович","ЗПР"]
[29,5,{"$f":"CONCATENATE(LEFT(F33),LEFT(G33),LEFT(список_детей[[#This Row],[Столбец1]]))","v":"ЗЛИ"},"5-6 лет","д","Зуйкова","Лидия","Ипполитовна","ЗПР"]
[30,5,{"$f":"CONCATENATE(LEFT(F34),LEFT(G34),LEFT(список_детей[[#This Row],[Столбец1]]))","v":"МНД"},"5-6 лет","м","Молодыха","Нона","Данилевна","ЗПР"]
[31,5,{"$f":"CONCATENATE(LEFT(F35),LEFT(G35),LEFT(список_детей[[#This Row],[Столбец1]]))","v":"ЧСН"},"5-6 лет","м","Чиграков","Степан","Натанович","ЗПР"]
[32,5,{"$f":"CONCATENATE(LEFT(F36),LEFT(G36),LEFT(список_детей[[#This Row],[Столбец1]]))","v":"ЮАО"},"5-6 лет","д","Юганцев","Агап","Остапович","ЗПР"]
[33,null,{"$f":"CONCATENATE(LEFT(F37),LEFT(G37),LEFT(список_детей[[#This Row],[Столбец1]]))","v":"ТЯВ"},"5-6 лет",null,"Травкина","Ярослава","Владиленовна"]
[34,null,{"$f":"CONCATENATE(LEFT(F38),LEFT(G38),LEFT(список_детей[[#This Row],[Столбец1]]))","v":"ЭОФ"},"5-6 лет",null,"Эрдели","Онуфрий","Федосиевич"]
[35,null,{"$f":"CONCATENATE(LEFT(F39),LEFT(G39),LEFT(список_детей[[#This Row],[Столбец1]]))","v":""},"5-6 лет"]
[36,null,{"$f":"CONCATENATE(LEFT(F40),LEFT(G40),LEFT(список_детей[[#This Row],[Столбец1]]))","v":""},"5-6 лет"]
[37,null,{"$f":"CONCATENATE(LEFT(F41),LEFT(G41),LEFT(список_детей[[#This Row],[Столбец1]]))","v":""},"5-6 лет"]
[38,null,{"$f":"CONCATENATE(LEFT(F42),LEFT(G42),LEFT(список_детей[[#This Row],[Столбец1]]))","v":""},"5-6 лет"]
[39,null,{"$f":"CONCATENATE(LEFT(F43),LEFT(G43),LEFT(список_детей[[#This Row],[Столбец1]]))","v":""},"5-6 лет"]
[40,null,{"$f":"CONCATENATE(LEFT(F44),LEFT(G44),LEFT(список_детей[[#This Row],[Столбец1]]))","v":""},"5-6 лет"]
[41,null,{"$f":"CONCATENATE(LEFT(F45),LEFT(G45),LEFT(список_детей[[#This Row],[Столбец1]]))","v":""},"5-6 лет"]
[42,null,{"$f":"CONCATENATE(LEFT(F46),LEFT(G46),LEFT(список_детей[[#This Row],[Столбец1]]))","v":""},"5-6 лет"]
[43,null,{"$f":"CONCATENATE(LEFT(F47),LEFT(G47),LEFT(список_детей[[#This Row],[Столбец1]]))","v":""},"5-6 лет"]
[44,null,{"$f":"CONCATENATE(LEFT(F48),LEFT(G48),LEFT(список_детей[[#This Row],[Столбец1]]))","v":""},"5-6 лет"]
[45,null,{"$f":"CONCATENATE(LEFT(F49),LEFT(G49),LEFT(список_детей[[#This Row],[Столбец1]]))","v":""},"5-6 лет"]
[46,null,{"$f":"CONCATENATE(LEFT(F50),LEFT(G50),LEFT(список_детей[[#This Row],[Столбец1]]))","v":""},"5-6 лет"]
[47,null,{"$f":"CONCATENATE(LEFT(F51),LEFT(G51),LEFT(список_детей[[#This Row],[Столбец1]]))","v":""},"5-6 лет"]
[48,null,{"$f":"CONCATENATE(LEFT(F52),LEFT(G52),LEFT(список_детей[[#This Row],[Столбец1]]))","v":""},"5-6 лет"]
[49,null,{"$f":"CONCATENATE(LEFT(F53),LEFT(G53),LEFT(список_детей[[#This Row],[Столбец1]]))","v":""},"5-6 лет"]
[50,null,{"$f":"CONCATENATE(LEFT(F54),LEFT(G54),LEFT(список_детей[[#This Row],[Столбец1]]))","v":""},"5-6 лет"]
[51,null,{"$f":"CONCATENATE(LEFT(F55),LEFT(G55),LEFT(список_детей[[#This Row],[Столбец1]]))","v":""},"5-6 лет"]
[52,null,{"$f":"CONCATENATE(LEFT(F56),LEFT(G56),LEFT(список_детей[[#This Row],[Столбец1]]))","v":""},"5-6 лет"]
[53,null,{"$f":"CONCATENATE(LEFT(F57),LEFT(G57),LEFT(список_детей[[#This Row],[Столбец1]]))","v":""},"5-6 лет"]
[54,null,{"$f":"CONCATENATE(LEFT(F58),LEFT(G58),LEFT(список_детей[[#This Row],[Столбец1]]))","v":""},"5-6 лет"]
[55,null,{"$f":"CONCATENATE(LEFT(F59),LEFT(G59),LEFT(список_детей[[#This Row],[Столбец1]]))","v":""},"5-6 лет"]
[56,null,{"$f":"CONCATENATE(LEFT(F60),LEFT(G60),LEFT(список_детей[[#This Row],[Столбец1]]))","v":""},"5-6 лет"]
[57,null,{"$f":"CONCATENATE(LEFT(F61),LEFT(G61),LEFT(список_детей[[#This Row],[Столбец1]]))","v":""},"5-6 лет"]
[58,null,{"$f":"CONCATENATE(LEFT(F62),LEFT(G62),LEFT(список_детей[[#This Row],[Столбец1]]))","v":""},"5-6 лет"]
[59,null,{"$f":"CONCATENATE(LEFT(F63),LEFT(G63),LEFT(список_детей[[#This Row],[Столбец1]]))","v":""},"5-6 лет"]
[60,null,{"$f":"CONCATENATE(LEFT(F64),LEFT(G64),LEFT(список_детей[[#This Row],[Столбец1]]))","v":""},"5-6 лет"]
[61,null,{"$f":"CONCATENATE(LEFT(F65),LEFT(G65),LEFT(список_детей[[#This Row],[Столбец1]]))","v":""},"5-6 лет"]
[62,null,{"$f":"CONCATENATE(LEFT(F66),LEFT(G66),LEFT(список_детей[[#This Row],[Столбец1]]))","v":""},"5-6 лет"]
[63,null,{"$f":"CONCATENATE(LEFT(F67),LEFT(G67),LEFT(список_детей[[#This Row],[Столбец1]]))","v":""},"5-6 лет"]
[64,null,{"$f":"CONCATENATE(LEFT(F68),LEFT(G68),LEFT(список_детей[[#This Row],[Столбец1]]))","v":""},"5-6 лет"]
[65,null,{"$f":"CONCATENATE(LEFT(F69),LEFT(G69),LEFT(список_детей[[#This Row],[Столбец1]]))","v":""},"5-6 лет"]
[66,null,{"$f":"CONCATENATE(LEFT(F70),LEFT(G70),LEFT(список_детей[[#This Row],[Столбец1]]))","v":""},"5-6 лет"]
[67,null,{"$f":"CONCATENATE(LEFT(F71),LEFT(G71),LEFT(список_детей[[#This Row],[Столбец1]]))","v":""},"5-6 лет"]
[68,null,{"$f":"CONCATENATE(LEFT(F72),LEFT(G72),LEFT(список_детей[[#This Row],[Столбец1]]))","v":""},"5-6 лет"]
[69,null,{"$f":"CONCATENATE(LEFT(F73),LEFT(G73),LEFT(список_детей[[#This Row],[Столбец1]]))","v":""},"5-6 лет"]
[70,null,{"$f":"CONCATENATE(LEFT(F74),LEFT(G74),LEFT(список_детей[[#This Row],[Столбец1]]))","v":""},"5-6 лет"]
[71,null,{"$f":"CONCATENATE(LEFT(F75),LEFT(G75),LEFT(список_детей[[#This Row],[Столбец1]]))","v":""},"5-6 лет"]
[72,null,{"$f":"CONCATENATE(LEFT(F76),LEFT(G76),LEFT(список_детей[[#This Row],[Столбец1]]))","v":""},"5-6 лет"]
[73,null,{"$f":"CONCATENATE(LEFT(F77),LEFT(G77),LEFT(список_детей[[#This Row],[Столбец1]]))","v":""},"5-6 лет"]
[74,null,{"$f":"CONCATENATE(LEFT(F78),LEFT(G78),LEFT(список_детей[[#This Row],[Столбец1]]))","v":""},"5-6 лет"]
[75,null,{"$f":"CONCATENATE(LEFT(F79),LEFT(G79),LEFT(список_детей[[#This Row],[Столбец1]]))","v":""},"5-6 лет"]
[76,null,{"$f":"CONCATENATE(LEFT(F80),LEFT(G80),LEFT(список_детей[[#This Row],[Столбец1]]))","v":""},"5-6 лет"]
[77,null,{"$f":"CONCATENATE(LEFT(F81),LEFT(G81),LEFT(список_детей[[#This Row],[Столбец1]]))","v":""},"5-6 лет"]
[78,null,{"$f":"CONCATENATE(LEFT(F82),LEFT(G82),LEFT(список_детей[[#This Row],[Столбец1]]))","v":""},"5-6 лет"]
[79,null,{"$f":"CONCATENATE(LEFT(F83),LEFT(G83),LEFT(список_детей[[#This Row],[Столбец1]]))","v":""},"5-6 лет"]
[80,null,{"$f":"CONCATENATE(LEFT(F84),LEFT(G84),LEFT(список_детей[[#This Row],[Столбец1]]))","v":""},"5-6 лет"]
[81,null,{"$f":"CONCATENATE(LEFT(F85),LEFT(G85),LEFT(список_детей[[#This Row],[Столбец1]]))","v":""},"5-6 лет"]
[82,null,{"$f":"CONCATENATE(LEFT(F86),LEFT(G86),LEFT(список_детей[[#This Row],[Столбец1]]))","v":""},"5-6 лет"]
[83,null,{"$f":"CONCATENATE(LEFT(F87),LEFT(G87),LEFT(список_детей[[#This Row],[Столбец1]]))","v":""},"5-6 лет"]
[84,null,{"$f":"CONCATENATE(LEFT(F88),LEFT(G88),LEFT(список_детей[[#This Row],[Столбец1]]))","v":""},"5-6 лет"]
[85,null,{"$f":"CONCATENATE(LEFT(F89),LEFT(G89),LEFT(список_детей[[#This Row],[Столбец1]]))","v":""},"5-6 лет"]
[86,null,{"$f":"CONCATENATE(LEFT(F90),LEFT(G90),LEFT(список_детей[[#This Row],[Столбец1]]))","v":""},"5-6 лет"]
[87,null,{"$f":"CONCATENATE(LEFT(F91),LEFT(G91),LEFT(список_детей[[#This Row],[Столбец1]]))","v":""},"5-6 лет"]
[88,null,{"$f":"CONCATENATE(LEFT(F92),LEFT(G92),LEFT(список_детей[[#This Row],[Столбец1]]))","v":""},"5-6 лет"]
[89,null,{"$f":"CONCATENATE(LEFT(F93),LEFT(G93),LEFT(список_детей[[#This Row],[Столбец1]]))","v":""},"5-6 лет"]
[90,null,{"$f":"CONCATENATE(LEFT(F94),LEFT(G94),LEFT(список_детей[[#This Row],[Столбец1]]))","v":""},"5-6 лет"]
[91,null,{"$f":"CONCATENATE(LEFT(F95),LEFT(G95),LEFT(список_детей[[#This Row],[Столбец1]]))","v":""},"5-6 лет"]
[92,null,{"$f":"CONCATENATE(LEFT(F96),LEFT(G96),LEFT(список_детей[[#This Row],[Столбец1]]))","v":""},"5-6 лет"]
[93,null,{"$f":"CONCATENATE(LEFT(F97),LEFT(G97),LEFT(список_детей[[#This Row],[Столбец1]]))","v":""},"5-6 лет"]
[94,null,{"$f":"CONCATENATE(LEFT(F98),LEFT(G98),LEFT(список_детей[[#This Row],[Столбец1]]))","v":""},"5-6 лет"]
[95,null,{"$f":"CONCATENATE(LEFT(F99),LEFT(G99),LEFT(список_детей[[#This Row],[Столбец1]]))","v":""},"5-6 лет"]
[96,null,{"$f":"CONCATENATE(LEFT(F100),LEFT(G100),LEFT(список_детей[[#This Row],[Столбец1]]))","v":""},"5-6 лет"]
[97,null,{"$f":"CONCATENATE(LEFT(F101),LEFT(G101),LEFT(список_детей[[#This Row],[Столбец1]]))","v":""},"5-6 лет"]
[98,null,{"$f":"CONCATENATE(LEFT(F102),LEFT(G102),LEFT(список_детей[[#This Row],[Столбец1]]))","v":""},"5-6 лет"]
[99,null,{"$f":"CONCATENATE(LEFT(F103),LEFT(G103),LEFT(список_детей[[#This Row],[Столбец1]]))","v":""},"5-6 лет"]
[100,null,{"$f":"CONCATENATE(LEFT(F104),LEFT(G104),LEFT(список_детей[[#This Row],[Столбец1]]))","v":""},"5-6 лет"]
[101,null,{"$f":"CONCATENATE(LEFT(F105),LEFT(G105),LEFT(список_детей[[#This Row],[Столбец1]]))","v":""},"5-6 лет"]
[102,null,{"$f":"CONCATENATE(LEFT(F106),LEFT(G106),LEFT(список_детей[[#This Row],[Столбец1]]))","v":""},"5-6 лет"]
[103,null,{"$f":"CONCATENATE(LEFT(F107),LEFT(G107),LEFT(список_детей[[#This Row],[Столбец1]]))","v":""},"5-6 лет"]
[104,null,{"$f":"CONCATENATE(LEFT(F108),LEFT(G108),LEFT(список_детей[[#This Row],[Столбец1]]))","v":""},"5-6 лет"]
[105,null,{"$f":"CONCATENATE(LEFT(F109),LEFT(G109),LEFT(список_детей[[#This Row],[Столбец1]]))","v":""},"5-6 лет"]
[106,null,{"$f":"CONCATENATE(LEFT(F110),LEFT(G110),LEFT(список_детей[[#This Row],[Столбец1]]))","v":""},"5-6 лет"]
[107,null,{"$f":"CONCATENATE(LEFT(F111),LEFT(G111),LEFT(список_детей[[#This Row],[Столбец1]]))","v":""},"5-6 лет"]
[108,null,{"$f":"CONCATENATE(LEFT(F112),LEFT(G112),LEFT(список_детей[[#This Row],[Столбец1]]))","v":""},"5-6 лет"]
[109,null,{"$f":"CONCATENATE(LEFT(F113),LEFT(G113),LEFT(список_детей[[#This Row],[Столбец1]]))","v":""},"5-6 лет"]
[110,null,{"$f":"CONCATENATE(LEFT(F114),LEFT(G114),LEFT(список_детей[[#This Row],[Столбец1]]))","v":""},"5-6 лет"]
[111,null,{"$f":"CONCATENATE(LEFT(F115),LEFT(G115),LEFT(список_детей[[#This Row],[Столбец1]]))","v":""},"5-6 лет"]
[112,null,{"$f":"CONCATENATE(LEFT(F116),LEFT(G116),LEFT(список_детей[[#This Row],[Столбец1]]))","v":""},"5-6 лет"]
[113,null,{"$f":"CONCATENATE(LEFT(F117),LEFT(G117),LEFT(список_детей[[#This Row],[Столбец1]]))","v":""},"5-6 лет"]
[114,null,{"$f":"CONCATENATE(LEFT(F118),LEFT(G118),LEFT(список_детей[[#This Row],[Столбец1]]))","v":""},"5-6 лет"]
[115,null,{"$f":"CONCATENATE(LEFT(F119),LEFT(G119),LEFT(список_детей[[#This Row],[Столбец1]]))","v":""},"5-6 лет"]
[116,null,{"$f":"CONCATENATE(LEFT(F120),LEFT(G120),LEFT(список_детей[[#This Row],[Столбец1]]))","v":""},"5-6 лет"]
[117,null,{"$f":"CONCATENATE(LEFT(F121),LEFT(G121),LEFT(список_детей[[#This Row],[Столбец1]]))","v":""},"5-6 лет"]
[118,null,{"$f":"CONCATENATE(LEFT(F122),LEFT(G122),LEFT(список_детей[[#This Row],[Столбец1]]))","v":""},"5-6 лет"]
[119,null,{"$f":"CONCATENATE(LEFT(F123),LEFT(G123),LEFT(список_детей[[#This Row],[Столбец1]]))","v":""},"5-6 лет"]
[120,null,{"$f":"CONCATENATE(LEFT(F124),LEFT(G124),LEFT(список_детей[[#This Row],[Столбец1]]))","v":""},"5-6 лет"]
[121,null,{"$f":"CONCATENATE(LEFT(F125),LEFT(G125),LEFT(список_детей[[#This Row],[Столбец1]]))","v":""},"5-6 лет"]
[122,null,{"$f":"CONCATENATE(LEFT(F126),LEFT(G126),LEFT(список_детей[[#This Row],[Столбец1]]))","v":""},"5-6 лет"]
[123,null,{"$f":"CONCATENATE(LEFT(F127),LEFT(G127),LEFT(список_детей[[#This Row],[Столбец1]]))","v":""},"5-6 лет"]
[124,null,{"$f":"CONCATENATE(LEFT(F128),LEFT(G128),LEFT(список_детей[[#This Row],[Столбец1]]))","v":""},"5-6 лет"]
[125,null,{"$f":"CONCATENATE(LEFT(F129),LEFT(G129),LEFT(список_детей[[#This Row],[Столбец1]]))","v":""},"5-6 лет"]
[126,null,{"$f":"CONCATENATE(LEFT(F130),LEFT(G130),LEFT(список_детей[[#This Row],[Столбец1]]))","v":""},"5-6 лет"]
[127,null,{"$f":"CONCATENATE(LEFT(F131),LEFT(G131),LEFT(список_детей[[#This Row],[Столбец1]]))","v":""},"5-6 лет"]
[128,null,{"$f":"CONCATENATE(LEFT(F132),LEFT(G132),LEFT(список_детей[[#This Row],[Столбец1]]))","v":""},"5-6 лет"]
[129,null,{"$f":"CONCATENATE(LEFT(F133),LEFT(G133),LEFT(список_детей[[#This Row],[Столбец1]]))","v":""},"5-6 лет"]
[130,null,{"$f":"CONCATENATE(LEFT(F134),LEFT(G134),LEFT(список_детей[[#This Row],[Столбец1]]))","v":""},"5-6 лет"]
[131,null,{"$f":"CONCATENATE(LEFT(F135),LEFT(G135),LEFT(список_детей[[#This Row],[Столбец1]]))","v":""},"5-6 лет"]
[132,null,{"$f":"CONCATENATE(LEFT(F136),LEFT(G136),LEFT(список_детей[[#This Row],[Столбец1]]))","v":""},"5-6 лет"]
[133,null,{"$f":"CONCATENATE(LEFT(F137),LEFT(G137),LEFT(список_детей[[#This Row],[Столбец1]]))","v":""},"5-6 лет"]
[134,null,{"$f":"CONCATENATE(LEFT(F138),LEFT(G138),LEFT(список_детей[[#This Row],[Столбец1]]))","v":""},"5-6 лет"]
[135,null,{"$f":"CONCATENATE(LEFT(F139),LEFT(G139),LEFT(список_детей[[#This Row],[Столбец1]]))","v":""},"5-6 лет"]
[136,null,{"$f":"CONCATENATE(LEFT(F140),LEFT(G140),LEFT(список_детей[[#This Row],[Столбец1]]))","v":""},"5-6 лет"]
[137,null,{"$f":"CONCATENATE(LEFT(F141),LEFT(G141),LEFT(список_детей[[#This Row],[Столбец1]]))","v":""},"5-6 лет"]
[138,null,{"$f":"CONCATENATE(LEFT(F142),LEFT(G142),LEFT(список_детей[[#This Row],[Столбец1]]))","v":""},"5-6 лет"]
[139,null,{"$f":"CONCATENATE(LEFT(F143),LEFT(G143),LEFT(список_детей[[#This Row],[Столбец1]]))","v":""},"5-6 лет"]
[140,null,{"$f":"CONCATENATE(LEFT(F144),LEFT(G144),LEFT(список_детей[[#This Row],[Столбец1]]))","v":""},"5-6 лет"]
[141,null,{"$f":"CONCATENATE(LEFT(F145),LEFT(G145),LEFT(список_детей[[#This Row],[Столбец1]]))","v":""},"5-6 лет"]
[142,null,{"$f":"CONCATENATE(LEFT(F146),LEFT(G146),LEFT(список_детей[[#This Row],[Столбец1]]))","v":""},"5-6 лет"]
[143,null,{"$f":"CONCATENATE(LEFT(F147),LEFT(G147),LEFT(список_детей[[#This Row],[Столбец1]]))","v":""},"5-6 лет"]
[144,null,{"$f":"CONCATENATE(LEFT(F148),LEFT(G148),LEFT(список_детей[[#This Row],[Столбец1]]))","v":""},"5-6 лет"]
[145,null,{"$f":"CONCATENATE(LEFT(F149),LEFT(G149),LEFT(список_детей[[#This Row],[Столбец1]]))","v":""},"5-6 лет"]
[146,null,{"$f":"CONCATENATE(LEFT(F150),LEFT(G150),LEFT(список_детей[[#This Row],[Столбец1]]))","v":""},"5-6 лет"]
[147,null,{"$f":"CONCATENATE(LEFT(F151),LEFT(G151),LEFT(список_детей[[#This Row],[Столбец1]]))","v":""},"5-6 лет"]
[148,null,{"$f":"CONCATENATE(LEFT(F152),LEFT(G152),LEFT(список_детей[[#This Row],[Столбец1]]))","v":""},"5-6 лет"]
[149,null,{"$f":"CONCATENATE(LEFT(F153),LEFT(G153),LEFT(список_детей[[#This Row],[Столбец1]]))","v":""},"5-6 лет"]
[150,null,{"$f":"CONCATENATE(LEFT(F154),LEFT(G154),LEFT(список_детей[[#This Row],[Столбец1]]))","v":""},"5-6 лет"]
[151,null,{"$f":"CONCATENATE(LEFT(F155),LEFT(G155),LEFT(список_детей[[#This Row],[Столбец1]]))","v":""},"5-6 лет"]
[152,null,{"$f":"CONCATENATE(LEFT(F156),LEFT(G156),LEFT(список_детей[[#This Row],[Столбец1]]))","v":""},"5-6 лет"]
[153,null,{"$f":"CONCATENATE(LEFT(F157),LEFT(G157),LEFT(список_детей[[#This Row],[Столбец1]]))","v":""},"5-6 лет"]
[154,null,{"$f":"CONCATENATE(LEFT(F158),LEFT(G158),LEFT(список_детей[[#This Row],[Столбец1]]))","v":""},"5-6 лет"]
[155,null,{"$f":"CONCATENATE(LEFT(F159),LEFT(G159),LEFT(список_детей[[#This Row],[Столбец1]]))","v":""},"5-6 лет"]
[156,null,{"$f":"CONCATENATE(LEFT(F160),LEFT(G160),LEFT(список_детей[[#This Row],[Столбец1]]))","v":""},"5-6 лет"]
[157,null,{"$f":"CONCATENATE(LEFT(F161),LEFT(G161),LEFT(список_детей[[#This Row],[Столбец1]]))","v":""},"5-6 лет"]
[158,null,{"$f":"CONCATENATE(LEFT(F162),LEFT(G162),LEFT(список_детей[[#This Row],[Столбец1]]))","v":""},"5-6 лет"]
[159,null,{"$f":"CONCATENATE(LEFT(F163),LEFT(G163),LEFT(список_детей[[#This Row],[Столбец1]]))","v":""},"5-6 лет"]
[160,null,{"$f":"CONCATENATE(LEFT(F164),LEFT(G164),LEFT(список_детей[[#This Row],[Столбец1]]))","v":""},"5-6 лет"]
[161,null,{"$f":"CONCATENATE(LEFT(F165),LEFT(G165),LEFT(список_детей[[#This Row],[Столбец1]]))","v":""},"5-6 лет"]
[162,null,{"$f":"CONCATENATE(LEFT(F166),LEFT(G166),LEFT(список_детей[[#This Row],[Столбец1]]))","v":""},"5-6 лет"]
[163,null,{"$f":"CONCATENATE(LEFT(F167),LEFT(G167),LEFT(список_детей[[#This Row],[Столбец1]]))","v":""},"5-6 лет"]
[164,null,{"$f":"CONCATENATE(LEFT(F168),LEFT(G168),LEFT(список_детей[[#This Row],[Столбец1]]))","v":""},"5-6 лет"]
[165,null,{"$f":"CONCATENATE(LEFT(F169),LEFT(G169),LEFT(список_детей[[#This Row],[Столбец1]]))","v":""},"5-6 лет"]
[166,null,{"$f":"CONCATENATE(LEFT(F170),LEFT(G170),LEFT(список_детей[[#This Row],[Столбец1]]))","v":""},"5-6 лет"]
[167,null,{"$f":"CONCATENATE(LEFT(F171),LEFT(G171),LEFT(список_детей[[#This Row],[Столбец1]]))","v":""},"5-6 лет"]
[168,null,{"$f":"CONCATENATE(LEFT(F172),LEFT(G172),LEFT(список_детей[[#This Row],[Столбец1]]))","v":""},"5-6 лет"]
[169,null,{"$f":"CONCATENATE(LEFT(F173),LEFT(G173),LEFT(список_детей[[#This Row],[Столбец1]]))","v":""},"5-6 лет"]
[170,null,{"$f":"CONCATENATE(LEFT(F174),LEFT(G174),LEFT(список_детей[[#This Row],[Столбец1]]))","v":""},"5-6 лет"]
[171,null,{"$f":"CONCATENATE(LEFT(F175),LEFT(G175),LEFT(список_детей[[#This Row],[Столбец1]]))","v":""},"5-6 лет"]
[172,null,{"$f":"CONCATENATE(LEFT(F176),LEFT(G176),LEFT(список_детей[[#This Row],[Столбец1]]))","v":""},"5-6 лет"]
[173,null,{"$f":"CONCATENATE(LEFT(F177),LEFT(G177),LEFT(список_детей[[#This Row],[Столбец1]]))","v":""},"5-6 лет"]
[174,null,{"$f":"CONCATENATE(LEFT(F178),LEFT(G178),LEFT(список_детей[[#This Row],[Столбец1]]))","v":""},"5-6 лет"]
[175,null,{"$f":"CONCATENATE(LEFT(F179),LEFT(G179),LEFT(список_детей[[#This Row],[Столбец1]]))","v":""},"5-6 лет"]
[176,null,{"$f":"CONCATENATE(LEFT(F180),LEFT(G180),LEFT(список_детей[[#This Row],[Столбец1]]))","v":""},"5-6 лет"]
[177,null,{"$f":"CONCATENATE(LEFT(F181),LEFT(G181),LEFT(список_детей[[#This Row],[Столбец1]]))","v":""},"5-6 лет"]
[178,null,{"$f":"CONCATENATE(LEFT(F182),LEFT(G182),LEFT(список_детей[[#This Row],[Столбец1]]))","v":""},"5-6 лет"]
[179,null,{"$f":"CONCATENATE(LEFT(F183),LEFT(G183),LEFT(список_детей[[#This Row],[Столбец1]]))","v":""},"5-6 лет"]
[180,null,{"$f":"CONCATENATE(LEFT(F184),LEFT(G184),LEFT(список_детей[[#This Row],[Столбец1]]))","v":""},"5-6 лет"]
[181,null,{"$f":"CONCATENATE(LEFT(F185),LEFT(G185),LEFT(список_детей[[#This Row],[Столбец1]]))","v":""},"5-6 лет"]
[182,null,{"$f":"CONCATENATE(LEFT(F186),LEFT(G186),LEFT(список_детей[[#This Row],[Столбец1]]))","v":""},"5-6 лет"]
[183,null,{"$f":"CONCATENATE(LEFT(F187),LEFT(G187),LEFT(список_детей[[#This Row],[Столбец1]]))","v":""},"5-6 лет"]
[184,null,{"$f":"CONCATENATE(LEFT(F188),LEFT(G188),LEFT(список_детей[[#This Row],[Столбец1]]))","v":""},"5-6 лет"]
[185,null,{"$f":"CONCATENATE(LEFT(F189),LEFT(G189),LEFT(список_детей[[#This Row],[Столбец1]]))","v":""},"5-6 лет"]
[186,null,{"$f":"CONCATENATE(LEFT(F190),LEFT(G190),LEFT(список_детей[[#This Row],[Столбец1]]))","v":""},"5-6 лет"]
[187,null,{"$f":"CONCATENATE(LEFT(F191),LEFT(G191),LEFT(список_детей[[#This Row],[Столбец1]]))","v":""},"5-6 лет"]
[188,null,{"$f":"CONCATENATE(LEFT(F192),LEFT(G192),LEFT(список_детей[[#This Row],[Столбец1]]))","v":""},"5-6 лет"]
[189,null,{"$f":"CONCATENATE(LEFT(F193),LEFT(G193),LEFT(список_детей[[#This Row],[Столбец1]]))","v":""},"5-6 лет"]
[190,null,{"$f":"CONCATENATE(LEFT(F194),LEFT(G194),LEFT(список_детей[[#This Row],[Столбец1]]))","v":""},"5-6 лет"]
[191,null,{"$f":"CONCATENATE(LEFT(F195),LEFT(G195),LEFT(список_детей[[#This Row],[Столбец1]]))","v":""},"5-6 лет"]
[192,null,{"$f":"CONCATENATE(LEFT(F196),LEFT(G196),LEFT(список_детей[[#This Row],[Столбец1]]))","v":""},"5-6 лет"]
[193,null,{"$f":"CONCATENATE(LEFT(F197),LEFT(G197),LEFT(список_детей[[#This Row],[Столбец1]]))","v":""},"5-6 лет"]
[194,null,{"$f":"CONCATENATE(LEFT(F198),LEFT(G198),LEFT(список_детей[[#This Row],[Столбец1]]))","v":""},"5-6 лет"]
[195,null,{"$f":"CONCATENATE(LEFT(F199),LEFT(G199),LEFT(список_детей[[#This Row],[Столбец1]]))","v":""},"5-6 лет"]
[196,null,{"$f":"CONCATENATE(LEFT(F200),LEFT(G200),LEFT(список_детей[[#This Row],[Столбец1]]))","v":""},"5-6 лет"]
[197,null,{"$f":"CONCATENATE(LEFT(F201),LEFT(G201),LEFT(список_детей[[#This Row],[Столбец1]]))","v":""},"5-6 лет"]
[198,null,{"$f":"CONCATENATE(LEFT(F202),LEFT(G202),LEFT(список_детей[[#This Row],[Столбец1]]))","v":""},"5-6 лет"]
[199,null,{"$f":"CONCATENATE(LEFT(F203),LEFT(G203),LEFT(список_детей[[#This Row],[Столбец1]]))","v":""},"5-6 лет"]
[200,null,{"$f":"CONCATENATE(LEFT(F204),LEFT(G204),LEFT(список_детей[[#This Row],[Столбец1]]))","v":""},"5-6 лет"]
[201,null,{"$f":"CONCATENATE(LEFT(F205),LEFT(G205),LEFT(список_детей[[#This Row],[Столбец1]]))","v":""},"5-6 лет"]
[202,null,{"$f":"CONCATENATE(LEFT(F206),LEFT(G206),LEFT(список_детей[[#This Row],[Столбец1]]))","v":""},"5-6 лет"]
[203,null,{"$f":"CONCATENATE(LEFT(F207),LEFT(G207),LEFT(список_детей[[#This Row],[Столбец1]]))","v":""},"5-6 лет"]
[204,null,{"$f":"CONCATENATE(LEFT(F208),LEFT(G208),LEFT(список_детей[[#This Row],[Столбец1]]))","v":""},"5-6 лет"]
[205,null,{"$f":"CONCATENATE(LEFT(F209),LEFT(G209),LEFT(список_детей[[#This Row],[Столбец1]]))","v":""},"5-6 лет"]
[206,null,{"$f":"CONCATENATE(LEFT(F210),LEFT(G210),LEFT(список_детей[[#This Row],[Столбец1]]))","v":""},"5-6 лет"]
[207,null,{"$f":"CONCATENATE(LEFT(F211),LEFT(G211),LEFT(список_детей[[#This Row],[Столбец1]]))","v":""},"5-6 лет"]
[208,null,{"$f":"CONCATENATE(LEFT(F212),LEFT(G212),LEFT(список_детей[[#This Row],[Столбец1]]))","v":""},"5-6 лет"]
[209,null,{"$f":"CONCATENATE(LEFT(F213),LEFT(G213),LEFT(список_детей[[#This Row],[Столбец1]]))","v":""},"5-6 лет"]
[210,null,{"$f":"CONCATENATE(LEFT(F214),LEFT(G214),LEFT(список_детей[[#This Row],[Столбец1]]))","v":""},"5-6 лет"]
[211,null,{"$f":"CONCATENATE(LEFT(F215),LEFT(G215),LEFT(список_детей[[#This Row],[Столбец1]]))","v":""},"5-6 лет"]
[212,null,{"$f":"CONCATENATE(LEFT(F216),LEFT(G216),LEFT(список_детей[[#This Row],[Столбец1]]))","v":""},"5-6 лет"]
[213,null,{"$f":"CONCATENATE(LEFT(F217),LEFT(G217),LEFT(список_детей[[#This Row],[Столбец1]]))","v":""},"5-6 лет"]
[214,null,{"$f":"CONCATENATE(LEFT(F218),LEFT(G218),LEFT(список_детей[[#This Row],[Столбец1]]))","v":""},"5-6 лет"]
[215,null,{"$f":"CONCATENATE(LEFT(F219),LEFT(G219),LEFT(список_детей[[#This Row],[Столбец1]]))","v":""},"5-6 лет"]
[216,null,{"$f":"CONCATENATE(LEFT(F220),LEFT(G220),LEFT(список_детей[[#This Row],[Столбец1]]))","v":""},"5-6 лет"]
[217,null,{"$f":"CONCATENATE(LEFT(F221),LEFT(G221),LEFT(список_детей[[#This Row],[Столбец1]]))","v":""},"5-6 лет"]
[218,null,{"$f":"CONCATENATE(LEFT(F222),LEFT(G222),LEFT(список_детей[[#This Row],[Столбец1]]))","v":""},"5-6 лет"]
[219,null,{"$f":"CONCATENATE(LEFT(F223),LEFT(G223),LEFT(список_детей[[#This Row],[Столбец1]]))","v":""},"5-6 лет"]
[220,null,{"$f":"CONCATENATE(LEFT(F224),LEFT(G224),LEFT(список_детей[[#This Row],[Столбец1]]))","v":""},"5-6 лет"]
[221,null,{"$f":"CONCATENATE(LEFT(F225),LEFT(G225),LEFT(список_детей[[#This Row],[Столбец1]]))","v":""},"5-6 лет"]
[222,null,{"$f":"CONCATENATE(LEFT(F226),LEFT(G226),LEFT(список_детей[[#This Row],[Столбец1]]))","v":""},"5-6 лет"]
[223,null,{"$f":"CONCATENATE(LEFT(F227),LEFT(G227),LEFT(список_детей[[#This Row],[Столбец1]]))","v":""},"5-6 лет"]
[224,null,{"$f":"CONCATENATE(LEFT(F228),LEFT(G228),LEFT(список_детей[[#This Row],[Столбец1]]))","v":""},"5-6 лет"]
[225,null,{"$f":"CONCATENATE(LEFT(F229),LEFT(G229),LEFT(список_детей[[#This Row],[Столбец1]]))","v":""},"5-6 лет"]
[226,null,{"$f":"CONCATENATE(LEFT(F230),LEFT(G230),LEFT(список_детей[[#This Row],[Столбец1]]))","v":""},"5-6 лет"]
[227,null,{"$f":"CONCATENATE(LEFT(F231),LEFT(G231),LEFT(список_детей[[#This Row],[Столбец1]]))","v":""},"5-6 лет"]
[228,null,{"$f":"CONCATENATE(LEFT(F232),LEFT(G232),LEFT(список_детей[[#This Row],[Столбец1]]))","v":""},"5-6 лет"]
[229,null,{"$f":"CONCATENATE(LEFT(F233),LEFT(G233),LEFT(список_детей[[#This Row],[Столбец1]]))","v":""},"5-6 лет"]
[230,null,{"$f":"CONCATENATE(LEFT(F234),LEFT(G234),LEFT(список_детей[[#This Row],[Столбец1]]))","v":""},"5-6 лет"]
[231,null,{"$f":"CONCATENATE(LEFT(F235),LEFT(G235),LEFT(список_детей[[#This Row],[Столбец1]]))","v":""},"5-6 лет"]
[232,null,{"$f":"CONCATENATE(LEFT(F236),LEFT(G236),LEFT(список_детей[[#This Row],[Столбец1]]))","v":""},"5-6 лет"]
[233,null,{"$f":"CONCATENATE(LEFT(F237),LEFT(G237),LEFT(список_детей[[#This Row],[Столбец1]]))","v":""},"5-6 лет"]
[234,null,{"$f":"CONCATENATE(LEFT(F238),LEFT(G238),LEFT(список_детей[[#This Row],[Столбец1]]))","v":""},"5-6 лет"]
[235,null,{"$f":"CONCATENATE(LEFT(F239),LEFT(G239),LEFT(список_детей[[#This Row],[Столбец1]]))","v":""},"5-6 лет"]
[236,null,{"$f":"CONCATENATE(LEFT(F240),LEFT(G240),LEFT(список_детей[[#This Row],[Столбец1]]))","v":""},"5-6 лет"]
[237,null,{"$f":"CONCATENATE(LEFT(F241),LEFT(G241),LEFT(список_детей[[#This Row],[Столбец1]]))","v":""},"5-6 лет"]
[238,null,{"$f":"CONCATENATE(LEFT(F242),LEFT(G242),LEFT(список_детей[[#This Row],[Столбец1]]))","v":""},"5-6 лет"]
[239,null,{"$f":"CONCATENATE(LEFT(F243),LEFT(G243),LEFT(список_детей[[#This Row],[Столбец1]]))","v":""},"5-6 лет"]
[240,null,{"$f":"CONCATENATE(LEFT(F244),LEFT(G244),LEFT(список_детей[[#This Row],[Столбец1]]))","v":""},"5-6 лет"]
[241,null,{"$f":"CONCATENATE(LEFT(F245),LEFT(G245),LEFT(список_детей[[#This Row],[Столбец1]]))","v":""},"5-6 лет"]
[242,null,{"$f":"CONCATENATE(LEFT(F246),LEFT(G246),LEFT(список_детей[[#This Row],[Столбец1]]))","v":""},"5-6 лет"]
[243,null,{"$f":"CONCATENATE(LEFT(F247),LEFT(G247),LEFT(список_детей[[#This Row],[Столбец1]]))","v":""},"5-6 лет"]
[244,null,{"$f":"CONCATENATE(LEFT(F248),LEFT(G248),LEFT(список_детей[[#This Row],[Столбец1]]))","v":""},"5-6 лет"]
[245,null,{"$f":"CONCATENATE(LEFT(F249),LEFT(G249),LEFT(список_детей[[#This Row],[Столбец1]]))","v":""},"5-6 лет"]
[246,null,{"$f":"CONCATENATE(LEFT(F250),LEFT(G250),LEFT(список_детей[[#This Row],[Столбец1]]))","v":""},"5-6 лет"]
[247,null,{"$f":"CONCATENATE(LEFT(F251),LEFT(G251),LEFT(список_детей[[#This Row],[Столбец1]]))","v":""},"5-6 лет"]
[248,null,{"$f":"CONCATENATE(LEFT(F252),LEFT(G252),LEFT(список_детей[[#This Row],[Столбец1]]))","v":""},"5-6 лет"]
[249,null,{"$f":"CONCATENATE(LEFT(F253),LEFT(G253),LEFT(список_детей[[#This Row],[Столбец1]]))","v":""},"5-6 лет"]
[250,null,{"$f":"CONCATENATE(LEFT(F254),LEFT(G254),LEFT(список_детей[[#This Row],[Столбец1]]))","v":""},"5-6 лет"]
[251,null,{"$f":"CONCATENATE(LEFT(F255),LEFT(G255),LEFT(список_детей[[#This Row],[Столбец1]]))","v":""},"5-6 лет"]
[252,null,{"$f":"CONCATENATE(LEFT(F256),LEFT(G256),LEFT(список_детей[[#This Row],[Столбец1]]))","v":""},"5-6 лет"]
[253,null,{"$f":"CONCATENATE(LEFT(F257),LEFT(G257),LEFT(список_детей[[#This Row],[Столбец1]]))","v":""},"5-6 лет"]
[254,null,{"$f":"CONCATENATE(LEFT(F258),LEFT(G258),LEFT(список_детей[[#This Row],[Столбец1]]))","v":""},"5-6 лет"]
[255,null,{"$f":"CONCATENATE(LEFT(F259),LEFT(G259),LEFT(список_детей[[#This Row],[Столбец1]]))","v":""},"5-6 лет"]
[256,null,{"$f":"CONCATENATE(LEFT(F260),LEFT(G260),LEFT(список_детей[[#This Row],[Столбец1]]))","v":""},"5-6 лет"]
[257,null,{"$f":"CONCATENATE(LEFT(F261),LEFT(G261),LEFT(список_детей[[#This Row],[Столбец1]]))","v":""},"5-6 лет"]
[258,null,{"$f":"CONCATENATE(LEFT(F262),LEFT(G262),LEFT(список_детей[[#This Row],[Столбец1]]))","v":""},"5-6 лет"]
[259,null,{"$f":"CONCATENATE(LEFT(F263),LEFT(G263),LEFT(список_детей[[#This Row],[Столбец1]]))","v":""},"5-6 лет"]
[260,null,{"$f":"CONCATENATE(LEFT(F264),LEFT(G264),LEFT(список_детей[[#This Row],[Столбец1]]))","v":""},"5-6 лет"]
[261,null,{"$f":"CONCATENATE(LEFT(F265),LEFT(G265),LEFT(список_детей[[#This Row],[Столбец1]]))","v":""},"5-6 лет"]
[262,null,{"$f":"CONCATENATE(LEFT(F266),LEFT(G266),LEFT(список_детей[[#This Row],[Столбец1]]))","v":""},"5-6 лет"]
[263,null,{"$f":"CONCATENATE(LEFT(F267),LEFT(G267),LEFT(список_детей[[#This Row],[Столбец1]]))","v":""},"5-6 лет"]
[264,null,{"$f":"CONCATENATE(LEFT(F268),LEFT(G268),LEFT(список_детей[[#This Row],[Столбец1]]))","v":""},"5-6 лет"]
[265,null,{"$f":"CONCATENATE(LEFT(F269),LEFT(G269),LEFT(список_детей[[#This Row],[Столбец1]]))","v":""},"5-6 лет"]
[266,null,{"$f":"CONCATENATE(LEFT(F270),LEFT(G270),LEFT(список_детей[[#This Row],[Столбец1]]))","v":""},"5-6 лет"]
[267,null,{"$f":"CONCATENATE(LEFT(F271),LEFT(G271),LEFT(список_детей[[#This Row],[Столбец1]]))","v":""},"5-6 лет"]
[268,null,{"$f":"CONCATENATE(LEFT(F272),LEFT(G272),LEFT(список_детей[[#This Row],[Столбец1]]))","v":""},"5-6 лет"]
[269,null,{"$f":"CONCATENATE(LEFT(F273),LEFT(G273),LEFT(список_детей[[#This Row],[Столбец1]]))","v":""},"5-6 лет"]
[270,null,{"$f":"CONCATENATE(LEFT(F274),LEFT(G274),LEFT(список_детей[[#This Row],[Столбец1]]))","v":""},"5-6 лет"]
[271,null,{"$f":"CONCATENATE(LEFT(F275),LEFT(G275),LEFT(список_детей[[#This Row],[Столбец1]]))","v":""},"5-6 лет"]
[272,null,{"$f":"CONCATENATE(LEFT(F276),LEFT(G276),LEFT(список_детей[[#This Row],[Столбец1]]))","v":""},"5-6 лет"]
[273,null,{"$f":"CONCATENATE(LEFT(F277),LEFT(G277),LEFT(список_детей[[#This Row],[Столбец1]]))","v":""},"5-6 лет"]
[274,null,{"$f":"CONCATENATE(LEFT(F278),LEFT(G278),LEFT(список_детей[[#This Row],[Столбец1]]))","v":""},"5-6 лет"]
[275,null,{"$f":"CONCATENATE(LEFT(F279),LEFT(G279),LEFT(список_детей[[#This Row],[Столбец1]]))","v":""},"5-6 лет"]
[276,null,{"$f":"CONCATENATE(LEFT(F280),LEFT(G280),LEFT(список_детей[[#This Row],[Столбец1]]))","v":""},"5-6 лет"]
[277,null,{"$f":"CONCATENATE(LEFT(F281),LEFT(G281),LEFT(список_детей[[#This Row],[Столбец1]]))","v":""},"5-6 лет"]
[278,null,{"$f":"CONCATENATE(LEFT(F282),LEFT(G282),LEFT(список_детей[[#This Row],[Столбец1]]))","v":""},"5-6 лет"]
[279,null,{"$f":"CONCATENATE(LEFT(F283),LEFT(G283),LEFT(список_детей[[#This Row],[Столбец1]]))","v":""},"5-6 лет"]
[280,null,{"$f":"CONCATENATE(LEFT(F284),LEFT(G284),LEFT(список_детей[[#This Row],[Столбец1]]))","v":""},"5-6 лет"]
[281,null,{"$f":"CONCATENATE(LEFT(F285),LEFT(G285),LEFT(список_детей[[#This Row],[Столбец1]]))","v":""},"5-6 лет"]
[282,null,{"$f":"CONCATENATE(LEFT(F286),LEFT(G286),LEFT(список_детей[[#This Row],[Столбец1]]))","v":""},"5-6 лет"]
[283,null,{"$f":"CONCATENATE(LEFT(F287),LEFT(G287),LEFT(список_детей[[#This Row],[Столбец1]]))","v":""},"5-6 лет"]
[284,null,{"$f":"CONCATENATE(LEFT(F288),LEFT(G288),LEFT(список_детей[[#This Row],[Столбец1]]))","v":""},"5-6 лет"]
[285,null,{"$f":"CONCATENATE(LEFT(F289),LEFT(G289),LEFT(список_детей[[#This Row],[Столбец1]]))","v":""},"5-6 лет"]
[286,null,{"$f":"CONCATENATE(LEFT(F290),LEFT(G290),LEFT(список_детей[[#This Row],[Столбец1]]))","v":""},"5-6 лет"]
[287,null,{"$f":"CONCATENATE(LEFT(F291),LEFT(G291),LEFT(список_детей[[#This Row],[Столбец1]]))","v":""},"5-6 лет"]
[288,null,{"$f":"CONCATENATE(LEFT(F292),LEFT(G292),LEFT(список_детей[[#This Row],[Столбец1]]))","v":""},"5-6 лет"]
[289,null,{"$f":"CONCATENATE(LEFT(F293),LEFT(G293),LEFT(список_детей[[#This Row],[Столбец1]]))","v":""},"5-6 лет"]
[290,null,{"$f":"CONCATENATE(LEFT(F294),LEFT(G294),LEFT(список_детей[[#This Row],[Столбец1]]))","v":""},"5-6 лет"]
[291,null,{"$f":"CONCATENATE(LEFT(F295),LEFT(G295),LEFT(список_детей[[#This Row],[Столбец1]]))","v":""},"5-6 лет"]
[292,null,{"$f":"CONCATENATE(LEFT(F296),LEFT(G296),LEFT(список_детей[[#This Row],[Столбец1]]))","v":""},"5-6 лет"]
[293,null,{"$f":"CONCATENATE(LEFT(F297),LEFT(G297),LEFT(список_детей[[#This Row],[Столбец1]]))","v":""},"5-6 лет"]
[294,null,{"$f":"CONCATENATE(LEFT(F298),LEFT(G298),LEFT(список_детей[[#This Row],[Столбец1]]))","v":""},"5-6 лет"]
[295,null,{"$f":"CONCATENATE(LEFT(F299),LEFT(G299),LEFT(список_детей[[#This Row],[Столбец1]]))","v":""},"5-6 лет"]
[296,null,{"$f":"CONCATENATE(LEFT(F300),LEFT(G300),LEFT(список_детей[[#This Row],[Столбец1]]))","v":""},"5-6 лет"]
[297,null,{"$f":"CONCATENATE(LEFT(F301),LEFT(G301),LEFT(список_детей[[#This Row],[Столбец1]]))","v":""},"5-6 лет"]
[298,null,{"$f":"CONCATENATE(LEFT(F302),LEFT(G302),LEFT(список_детей[[#This Row],[Столбец1]]))","v":""},"5-6 лет"]

{"sheet":"ЖУВР","index":1,"n_rows":36,"n_cols":23,"rows_kept":36,"cut":false,"hidden":false,"merged":[[0,1,0,17]]}
[null,"ЖУРНАЛ УЧЁТА ВИДОВ РАБОТЫ"]
[null,"№ пп","месяц","группа","номер ребенка/группы","Код ребенка","Возраст","Первичное обследование","Вторичное обследовние","Групповая диагностика","Индивидуальное занятие","Групповая КРР\n/ (тренинг)","Индивидуальная консультация","Консультация для родителей\n(собрание)","Консультация для специалистов","Участие\\проведение консилиума","Проведение\\посещение занятий","Другие виды работ (в т.ч. семинары и групповые консультации)"]
[null,1,null,{"$f":"VLOOKUP(E3,[2]!список_детей[#Data],2,1)","v":10},1,{"$f":"VLOOKUP(E3,список_детей[],3)","v":"ЯГМ"},{"$f":"VLOOKUP(E3,список_детей[],4)","v":"5-6 лет"},null,null,null,null,null,null,null,null,null,null,null,null,{"$f":"IF(INDEX([2]ИДР!$D:$D,MATCH(E3,[2]!ИДР[[#All],[номер участника]],0))=1,\"+\",\"\")","v":""},null,"подстветка","выкл"]
[null,2,null,{"$f":"VLOOKUP(E4,[2]!список_детей[#Data],2,1)","v":10},2,{"$f":"VLOOKUP(E4,список_детей[],3)","v":"НАП"},{"$f":"VLOOKUP(E4,список_детей[],4)","v":"5-6 лет"},null,null,null,null,null,null,null,null,null,null,null,null,{"$f":"IF([2]!ГДР[[#This Row],[Дата проведения]],INDEX([2]!ГДР[[#All],[ Группа]],MATCH([2]!ГДР[[#This Row],[ Группа]],[2]!ГДР[[#All],[ Группа]],0)),\"\")","v":10}]
[null,3,null,{"$f":"VLOOKUP(E5,[2]!список_детей[#Data],2,1)","v":10},3,{"$f":"VLOOKUP(E5,список_детей[],3)","v":"БДМ"},{"$f":"VLOOKUP(E5,список_детей[],4)","v":"5-6 лет"}]
[null,4,null,{"$f":"VLOOKUP(E6,[2]!список_детей[#Data],2,1)","v":10},4,{"$f":"VLOOKUP(E6,список_детей[],3)","v":"ДВА"},{"$f":"VLOOKUP(E6,список_детей[],4)","v":"5-6 лет"}]
[null,5,null,{"$f":"VLOOKUP(E7,[2]!список_детей[#Data],2,1)","v":10},5,{"$f":"VLOOKUP(E7,список_детей[],3)","v":"НПГ"},{"$f":"VLOOKUP(E7,список_детей[],4)","v":"5-6 лет"},null,null,null,null,null,null,null,null,null,null,null,null,"ИНДЕКС(ИДР[[#Все];[месяц]:[Код участника]];ПОИСКПОЗ([@[номер ребенка/группы]];ИДР[[#Все];[номер участника]]);2)"]
[null,6,null,{"$f":"VLOOKUP(E8,[2]!список_детей[#Data],2,1)","v":10},6,{"$f":"VLOOKUP(E8,список_детей[],3)","v":"ПМС"},{"$f":"VLOOKUP(E8,список_детей[],4)","v":"5-6 лет"}]
[null,7,null,{"$f":"VLOOKUP(E9,[2]!список_детей[#Data],2,1)","v":10},7,{"$f":"VLOOKUP(E9,список_детей[],3)","v":"РГА"},{"$f":"VLOOKUP(E9,список_детей[],4)","v":"5-6 лет"}]
[null,8,null,{"$f":"VLOOKUP(E10,[2]!список_детей[#Data],2,1)","v":10},8,{"$f":"VLOOKUP(E10,список_детей[],3)","v":"КОЛ"},{"$f":"VLOOKUP(E10,список_детей[],4)","v":"5-6 лет"}]
[null,9,null,{"$f":"VLOOKUP(E11,[2]!список_детей[#Data],2,1)","v":10},9,{"$f":"VLOOKUP(E11,список_детей[],3)","v":"ЯМП"},{"$f":"VLOOKUP(E11,список_детей[],4)","v":"5-6 лет"}]
[null,10,null,{"$f":"VLOOKUP(E12,[2]!список_детей[#Data],2,1)","v":10},10,{"$f":"VLOOKUP(E12,список_детей[],3)","v":"НЕЗ"},{"$f":"VLOOKUP(E12,список_детей[],4)","v":"5-6 лет"}]
[null,11,null,{"$f":"VLOOKUP(E13,[2]!список_детей[#Data],2,1)","v":10},11,{"$f":"VLOOKUP(E13,список_детей[],3)","v":"ЖАИ"},{"$f":"VLOOKUP(E13,список_детей[],4)","v":"5-6 лет"}]
[null,12,null,{"$f":"VLOOKUP(E14,[2]!список_детей[#Data],2,1)","v":10},12,{"$f":"VLOOKUP(E14,список_детей[],3)","v":"АВМ"},{"$f":"VLOOKUP(E14,список_детей[],4)","v":"5-6 лет"}]
[null,13,null,{"$f":"VLOOKUP(E15,[2]!список_детей[#Data],2,1)","v":10},13,{"$f":"VLOOKUP(E15,список_детей[],3)","v":"ЧКД"},{"$f":"VLOOKUP(E15,список_детей[],4)","v":"5-6 лет"}]
[null,14,null,{"$f":"VLOOKUP(E16,[2]!список_детей[#Data],2,1)","v":{"$error":"#N/A"}},null,{"$f":"VLOOKUP(E16,список_детей[],3)","v":{"$error":"#N/A"}},{"$f":"VLOOKUP(E16,список_детей[],4)","v":{"$error":"#N/A"}}]
[null,15,null,{"$f":"VLOOKUP(E17,[2]!список_детей[#Data],2,1)","v":{"$error":"#N/A"}},null,{"$f":"VLOOKUP(E17,список_детей[],3)","v":{"$error":"#N/A"}},{"$f":"VLOOKUP(E17,список_детей[],4)","v":{"$error":"#N/A"}}]
[null,16,null,{"$f":"VLOOKUP(E18,[2]!список_детей[#Data],2,1)","v":{"$error":"#N/A"}},null,{"$f":"VLOOKUP(E18,список_детей[],3)","v":{"$error":"#N/A"}},{"$f":"VLOOKUP(E18,список_детей[],4)","v":{"$error":"#N/A"}}]
[null,17,null,{"$f":"VLOOKUP(E19,[2]!список_детей[#Data],2,1)","v":{"$error":"#N/A"}},null,{"$f":"VLOOKUP(E19,список_детей[],3)","v":{"$error":"#N/A"}},{"$f":"VLOOKUP(E19,список_детей[],4)","v":{"$error":"#N/A"}}]
[null,18,null,{"$f":"VLOOKUP(E20,[2]!список_детей[#Data],2,1)","v":{"$error":"#N/A"}},null,{"$f":"VLOOKUP(E20,список_детей[],3)","v":{"$error":"#N/A"}},{"$f":"VLOOKUP(E20,список_детей[],4)","v":{"$error":"#N/A"}}]
[null,19,null,{"$f":"VLOOKUP(E21,[2]!список_детей[#Data],2,1)","v":{"$error":"#N/A"}},null,{"$f":"VLOOKUP(E21,список_детей[],3)","v":{"$error":"#N/A"}},{"$f":"VLOOKUP(E21,список_детей[],4)","v":{"$error":"#N/A"}}]
[null,20,null,{"$f":"VLOOKUP(E22,[2]!список_детей[#Data],2,1)","v":{"$error":"#N/A"}},null,{"$f":"VLOOKUP(E22,список_детей[],3)","v":{"$error":"#N/A"}},{"$f":"VLOOKUP(E22,список_детей[],4)","v":{"$error":"#N/A"}}]
[null,21,null,{"$f":"VLOOKUP(E23,[2]!список_детей[#Data],2,1)","v":{"$error":"#N/A"}},null,{"$f":"VLOOKUP(E23,список_детей[],3)","v":{"$error":"#N/A"}},{"$f":"VLOOKUP(E23,список_детей[],4)","v":{"$error":"#N/A"}}]
[null,22,null,{"$f":"VLOOKUP(E24,[2]!список_детей[#Data],2,1)","v":{"$error":"#N/A"}},null,{"$f":"VLOOKUP(E24,список_детей[],3)","v":{"$error":"#N/A"}},{"$f":"VLOOKUP(E24,список_детей[],4)","v":{"$error":"#N/A"}}]
[null,23,null,{"$f":"VLOOKUP(E25,[2]!список_детей[#Data],2,1)","v":{"$error":"#N/A"}},null,{"$f":"VLOOKUP(E25,список_детей[],3)","v":{"$error":"#N/A"}},{"$f":"VLOOKUP(E25,список_детей[],4)","v":{"$error":"#N/A"}}]
[null,24,null,{"$f":"VLOOKUP(E26,[2]!список_детей[#Data],2,1)","v":{"$error":"#N/A"}},null,{"$f":"VLOOKUP(E26,список_детей[],3)","v":{"$error":"#N/A"}},{"$f":"VLOOKUP(E26,список_детей[],4)","v":{"$error":"#N/A"}}]
[null,25,null,{"$f":"VLOOKUP(E27,[2]!список_детей[#Data],2,1)","v":{"$error":"#N/A"}},null,{"$f":"VLOOKUP(E27,список_детей[],3)","v":{"$error":"#N/A"}},{"$f":"VLOOKUP(E27,список_детей[],4)","v":{"$error":"#N/A"}}]
[null,26,null,{"$f":"VLOOKUP(E28,[2]!список_детей[#Data],2,1)","v":{"$error":"#N/A"}},null,{"$f":"VLOOKUP(E28,список_детей[],3)","v":{"$error":"#N/A"}},{"$f":"VLOOKUP(E28,список_детей[],4)","v":{"$error":"#N/A"}}]
[null,27,null,{"$f":"VLOOKUP(E29,[2]!список_детей[#Data],2,1)","v":{"$error":"#N/A"}},null,{"$f":"VLOOKUP(E29,список_детей[],3)","v":{"$error":"#N/A"}},{"$f":"VLOOKUP(E29,список_детей[],4)","v":{"$error":"#N/A"}}]
[null,28,null,{"$f":"VLOOKUP(E30,[2]!список_детей[#Data],2,1)","v":{"$error":"#N/A"}},null,{"$f":"VLOOKUP(E30,список_детей[],3)","v":{"$error":"#N/A"}},{"$f":"VLOOKUP(E30,список_детей[],4)","v":{"$error":"#N/A"}}]
[null,29,null,{"$f":"VLOOKUP(E31,[2]!список_детей[#Data],2,1)","v":{"$error":"#N/A"}},null,{"$f":"VLOOKUP(E31,список_детей[],3)","v":{"$error":"#N/A"}},{"$f":"VLOOKUP(E31,список_детей[],4)","v":{"$error":"#N/A"}}]
[null,30,null,{"$f":"VLOOKUP(E32,[2]!список_детей[#Data],2,1)","v":{"$error":"#N/A"}},null,{"$f":"VLOOKUP(E32,список_детей[],3)","v":{"$error":"#N/A"}},{"$f":"VLOOKUP(E32,список_детей[],4)","v":{"$error":"#N/A"}}]
[null,31,null,{"$f":"VLOOKUP(E33,[2]!список_детей[#Data],2,1)","v":{"$error":"#N/A"}},null,{"$f":"VLOOKUP(E33,список_детей[],3)","v":{"$error":"#N/A"}},{"$f":"VLOOKUP(E33,список_детей[],4)","v":{"$error":"#N/A"}}]
[null,32,null,{"$f":"VLOOKUP(E34,[2]!список_детей[#Data],2,1)","v":{"$error":"#N/A"}},null,{"$f":"VLOOKUP(E34,список_детей[],3)","v":{"$error":"#N/A"}},{"$f":"VLOOKUP(E34,список_детей[],4)","v":{"$error":"#N/A"}}]
[null,33,null,"родители",null,{"$f":"VLOOKUP(E35,список_детей[],3)","v":{"$error":"#N/A"}},{"$f":"VLOOKUP(E35,список_детей[],4)","v":{"$error":"#N/A"}}]
[null,34,null,"специалисты",null,{"$f":"VLOOKUP(E36,список_детей[],3)","v":{"$error":"#N/A"}},{"$f":"VLOOKUP(E36,список_детей[],4)","v":{"$error":"#N/A"}}]

{"sheet":"ИДР","index":2,"n_rows":298,"n_cols":23,"rows_kept":298,"cut":false,"hidden":false,"merged":[[0,1,0,10]]}
[]
[null,"месяц","Дата проведения","Вид обследования","номер участника","Код участника","возраст","пол","Группа","Код обращения","Используемые методики",null,"сентябрь","подсчет по месяцам","Кол-во по коду","подсчет по годам","Кол-во детей","подсчет по полу","Кол-во по полу","Вид обследования","Кол-во по виду"]
[null,{"$f":"TEXT(C3,\"ММММ\")","v":"Сентябрь"},"2020-09-02",2,1,{"$f":"VLOOKUP(ИДР[[#This Row],[номер участника]],список_детей[],3)","v":"ЯГМ"},null,null,null,"ИО",null,null,null,"ООП",{"$f":"COUNTIFS(ИДР[месяц],$M$2,ИДР[Код обращения],N3)","v":3},"1-2 года",{"$f":"COUNTIFS(ИДР[месяц],$M$2,ИДР[возраст],P3)","v":0},"д",{"$f":"COUNTIF(ИДР[пол],R3)","v":0},1,{"$f":"COUNTIFS(ИДР[месяц],M2,ИДР[Вид обследования],T3)","v":15},null,{"$f":"INDEX(ИДР[[#All],[месяц]:[Код участника]],MATCH(ИДР[[#This Row],[номер участника]],ИДР[[#All],[номер участника]]),2)","v":"2020-09-02"}]
[null,{"$f":"TEXT(C4,\"ММММ\")","v":"Сентябрь"},"2020-09-02",2,2,{"$f":"VLOOKUP(ИДР[[#This Row],[номер участника]],список_детей[],3)","v":"НАП"},null,null,null,"РР",null,null,null,"В",{"$f":"COUNTIFS(ИДР[месяц],$M$2,ИДР[Код обращения],N4)","v":25},"2-3 года",{"$f":"COUNTIFS(ИДР[месяц],$M$2,ИДР[возраст],P4)","v":0},"м",{"$f":"COUNTIF(ИДР[пол],R4)","v":0},2,{"$f":"COUNTIFS(ИДР[[#Data],[#Totals],[месяц]],Таблица8[[#Headers],[сентябрь]],ИДР[[#Data],[#Totals],[Вид обследования]],Таблица8[[#This Row],[Вид обследования]])","v":37},null,{"$f":"INDEX(ИДР[[#All],[месяц]:[Код участника]],MATCH(ИДР[[#This Row],[номер участника]],ИДР[[#All],[номер участника]]),2)","v":"2020-09-02"}]
[null,"Сентябрь","2020-09-03",2,3,{"$f":"VLOOKUP(ИДР[[#This Row],[номер участника]],список_детей[],3)","v":"БДМ"},null,null,null,"П",null,null,null,"П",{"$f":"COUNTIFS(ИДР[месяц],$M$2,ИДР[Код обращения],N5)","v":5},"3-4 года",{"$f":"COUNTIFS(ИДР[месяц],$M$2,ИДР[возраст],P5)","v":0},null,null,null,null,null,{"$f":"INDEX(ИДР[[#All],[месяц]:[Код участника]],MATCH(ИДР[[#This Row],[номер участника]],ИДР[[#All],[номер участника]]),2)","v":"2020-09-03"}]
[null,"Сентябрь","2020-09-04",2,4,{"$f":"VLOOKUP(ИДР[[#This Row],[номер участника]],список_детей[],3)","v":"ДВА"},null,null,null,"П",null,null,null,"ЭП",{"$f":"COUNTIFS(ИДР[месяц],$M$2,ИДР[Код обращения],N6)","v":5},"4-5 лет",{"$f":"COUNTIFS(ИДР[месяц],$M$2,ИДР[возраст],P6)","v":0},null,null,null,null,null,{"$f":"INDEX(ИДР[[#All],[месяц]:[Код участника]],MATCH(ИДР[[#This Row],[номер участника]],ИДР[[#All],[номер участника]]),2)","v":"2020-09-04"}]
[null,"Сентябрь","2020-09-05",1,5,{"$f":"VLOOKUP(ИДР[[#This Row],[номер участника]],список_детей[],3)","v":"НПГ"},null,null,null,"ЭП",null,null,null,"ИО",{"$f":"COUNTIFS(ИДР[месяц],$M$2,ИДР[Код обращения],N7)","v":6},"5-6 лет",{"$f":"COUNTIFS(ИДР[месяц],$M$2,ИДР[возраст],P7)","v":0},null,null,null,null,null,{"$f":"IF(INDEX([2]ИДР!$D$3:$D$1048576,MATCH(E3,ИДР[[#All],[номер участника]],0))=2,\"+\",\"\")","v":"+"}]
[null,"Сентябрь","2020-09-06",1,6,{"$f":"VLOOKUP(ИДР[[#This Row],[номер участника]],список_детей[],3)","v":"ПМС"},null,null,null,"ЭП",null,null,null,"РР",{"$f":"COUNTIFS(ИДР[месяц],$M$2,ИДР[Код обращения],N8)","v":3},"6-7 лет",{"$f":"COUNTIFS(ИДР[месяц],$M$2,ИДР[возраст],P8)","v":0}]
[null,"Сентябрь","2020-09-07",1,7,{"$f":"VLOOKUP(ИДР[[#This Row],[номер участника]],список_детей[],3)","v":"РГА"},null,null,null,"ООМ",null,null,null,"ООМ",{"$f":"COUNTIFS(ИДР[месяц],$M$2,ИДР[Код обращения],N9)","v":4}]
[null,"Сентябрь","2020-09-08",1,8,{"$f":"VLOOKUP(ИДР[[#This Row],[номер участника]],список_детей[],3)","v":"КОЛ"},null,null,null,"ООМ",null,null,null,"УАР",{"$f":"COUNTIFS(ИДР[месяц],$M$2,ИДР[Код обращения],N10)","v":0}]
[null,"Сентябрь","2020-09-09",1,9,{"$f":"VLOOKUP(ИДР[[#This Row],[номер участника]],список_детей[],3)","v":"ЯМП"},null,null,null,"ГШ",null,null,null,"ГШ",{"$f":"COUNTIFS(ИДР[месяц],$M$2,ИДР[Код обращения],N11)","v":1}]
[null,"Сентябрь","2020-09-10",1,10,{"$f":"VLOOKUP(ИДР[[#This Row],[номер участника]],список_детей[],3)","v":"НЕЗ"},null,null,null,"ООП",null,null,null,"Итог",{"$f":"SUM(O3:O11)","v":52}]
[null,"Сентябрь","2020-09-11",1,11,{"$f":"VLOOKUP(ИДР[[#This Row],[номер участника]],список_детей[],3)","v":"ЖАИ"},null,null,null,"В"]
[null,"Сентябрь","2020-09-12",1,12,{"$f":"VLOOKUP(ИДР[[#This Row],[номер участника]],список_детей[],3)","v":"АВМ"},null,null,null,"П"]
[null,"Сентябрь","2020-09-13",1,13,{"$f":"VLOOKUP(ИДР[[#This Row],[номер участника]],список_детей[],3)","v":"ЧКД"},null,null,null,"ЭП"]
[null,"Сентябрь","2020-09-14",1,14,{"$f":"VLOOKUP(ИДР[[#This Row],[номер участника]],список_детей[],3)","v":"ССЯ"},null,null,null,"ИО"]
[null,"Сентябрь","2020-09-15",1,15,{"$f":"VLOOKUP(ИДР[[#This Row],[номер участника]],список_детей[],3)","v":"ГРЧ"},null,null,null,"РР"]
[null,"Сентябрь","2020-09-16",1,16,{"$f":"VLOOKUP(ИДР[[#This Row],[номер участника]],список_детей[],3)","v":"ЭАН"},null,null,null,"ООМ"]
[null,"Сентябрь","2020-09-17",1,17,{"$f":"VLOOKUP(ИДР[[#This Row],[номер участника]],список_детей[],3)","v":"ЯГЕ"},null,null,null,"ООП"]
[null,"Сентябрь","2020-09-18",1,18,{"$f":"VLOOKUP(ИДР[[#This Row],[номер участника]],список_детей[],3)","v":"СМП"},null,null,null,"В"]
[null,"Сентябрь","2020-09-19",1,19,{"$f":"VLOOKUP(ИДР[[#This Row],[номер участника]],список_детей[],3)","v":"ЮЛВ"},null,null,null,"П"]
[null,"Сентябрь","2020-09-20",2,20,{"$f":"VLOOKUP(ИДР[[#This Row],[номер участника]],список_детей[],3)","v":"БЛИ"},null,null,null,"ЭП"]
[null,"Сентябрь","2020-09-21",2,21,{"$f":"VLOOKUP(ИДР[[#This Row],[номер участника]],список_детей[],3)","v":"ЛРТ"},null,null,null,"ИО"]
[null,"Сентябрь","2020-09-22",2,22,{"$f":"VLOOKUP(ИДР[[#This Row],[номер участника]],список_детей[],3)","v":"ШАЧ"},null,null,null,"РР"]
[null,"Сентябрь","2020-09-23",2,23,{"$f":"VLOOKUP(ИДР[[#This Row],[номер участника]],список_детей[],3)","v":"ЮПГ"},null,null,null,"ООМ"]
[null,"Сентябрь","2020-09-24",2,24,{"$f":"VLOOKUP(ИДР[[#This Row],[номер участника]],список_детей[],3)","v":"КСФ"},null,null,null,"ООП"]
[null,"Сентябрь","2020-09-25",2,25,{"$f":"VLOOKUP(ИДР[[#This Row],[номер участника]],список_детей[],3)","v":"ЛАЛ"},null,null,null,"В"]
[null,"Сентябрь","2020-09-26",2,26,{"$f":"VLOOKUP(ИДР[[#This Row],[номер участника]],список_детей[],3)","v":"ШВЕ"},null,null,null,"П"]
[null,"Сентябрь","2020-09-27",2,27,{"$f":"VLOOKUP(ИДР[[#This Row],[номер участника]],список_детей[],3)","v":"БХН"},null,null,null,"ЭП"]
[null,"Сентябрь","2020-09-28",2,28,{"$f":"VLOOKUP(ИДР[[#This Row],[номер участника]],список_детей[],3)","v":"УВЕ"},null,null,null,"ИО"]
[null,"Сентябрь","2020-09-29",2,29,{"$f":"VLOOKUP(ИДР[[#This Row],[номер участника]],список_детей[],3)","v":"ЗЛИ"},null,null,null,"ИО"]
[null,"Сентябрь","2020-09-30",2,30,{"$f":"VLOOKUP(ИДР[[#This Row],[номер участника]],список_детей[],3)","v":"МНД"},null,null,null,"ИО"]
[null,"Октябрь","2020-10-01",2,31,{"$f":"VLOOKUP(ИДР[[#This Row],[номер участника]],список_детей[],3)","v":"ЧСН"},null,null,null,"ИО"]
[null,"Октябрь","2020-10-02",2,32,{"$f":"VLOOKUP(ИДР[[#This Row],[номер участника]],список_детей[],3)","v":"ЮАО"},null,null,null,"В"]
[null,"Октябрь","2020-10-03",2,null,{"$f":"VLOOKUP(ИДР[[#This Row],[номер участника]],список_детей[],3)","v":{"$error":"#N/A"}},null,null,null,"В"]
[null,"Октябрь","2020-10-04",2,null,{"$f":"VLOOKUP(ИДР[[#This Row],[номер участника]],список_детей[],3)","v":{"$error":"#N/A"}},null,null,null,"В"]
[null,"Октябрь","2020-10-05",2,null,{"$f":"VLOOKUP(ИДР[[#This Row],[номер участника]],список_детей[],3)","v":{"$error":"#N/A"}},null,null,null,"В"]
[null,"Октябрь","2020-10-06",2,null,{"$f":"VLOOKUP(ИДР[[#This Row],[номер участника]],список_детей[],3)","v":{"$error":"#N/A"}},null,null,null,"В"]
[null,"Октябрь","2020-10-07",2,null,{"$f":"VLOOKUP(ИДР[[#This Row],[номер участника]],список_детей[],3)","v":{"$error":"#N/A"}},null,null,null,"В"]
[null,"Декабрь","2020-12-10",2,null,{"$f":"VLOOKUP(ИДР[[#This Row],[номер участника]],список_детей[],3)","v":{"$error":"#N/A"}},null,null,null,"В"]
[null,"Декабрь","2020-12-11",2,null,{"$f":"VLOOKUP(ИДР[[#This Row],[номер участника]],список_детей[],3)","v":{"$error":"#N/A"}},null,null,null,"В"]
[null,"Декабрь","2020-12-14",2,null,{"$f":"VLOOKUP(ИДР[[#This Row],[номер участника]],список_детей[],3)","v":{"$error":"#N/A"}},null,null,null,"В"]
[null,"Декабрь","2020-12-15",2,null,{"$f":"VLOOKUP(ИДР[[#This Row],[номер участника]],список_детей[],3)","v":{"$error":"#N/A"}},null,null,null,"В"]
[null,"Декабрь","2020-12-16",2,42,{"$f":"VLOOKUP(ИДР[[#This Row],[номер участника]],список_детей[],3)","v":""},null,null,null,"В"]
[null,"Декабрь","2020-12-17",2,43,{"$f":"VLOOKUP(ИДР[[#This Row],[номер участника]],список_детей[],3)","v":""},null,null,null,"В"]
[null,"Декабрь","2020-12-18",2,44,{"$f":"VLOOKUP(ИДР[[#This Row],[номер участника]],список_детей[],3)","v":""},null,null,null,"В"]
[null,"Декабрь","2020-12-21",2,45,{"$f":"VLOOKUP(ИДР[[#This Row],[номер участника]],список_детей[],3)","v":""},null,null,null,"В"]
[null,"Декабрь","2020-12-22",2,46,{"$f":"VLOOKUP(ИДР[[#This Row],[номер участника]],список_детей[],3)","v":""},null,null,null,"В"]
[null,"Декабрь","2020-12-23",2,47,{"$f":"VLOOKUP(ИДР[[#This Row],[номер участника]],список_детей[],3)","v":""},null,null,null,"В"]
[null,"Декабрь","2020-12-24",2,48,{"$f":"VLOOKUP(ИДР[[#This Row],[номер участника]],список_детей[],3)","v":""},null,null,null,"В"]
[null,"Декабрь","2020-12-25",2,49,{"$f":"VLOOKUP(ИДР[[#This Row],[номер участника]],список_детей[],3)","v":""},null,null,null,"В"]
[null,"Декабрь","2020-12-28",2,50,{"$f":"VLOOKUP(ИДР[[#This Row],[номер участника]],список_детей[],3)","v":""},null,null,null,"В"]
[null,"Декабрь","2020-12-29",2,51,{"$f":"VLOOKUP(ИДР[[#This Row],[номер участника]],список_детей[],3)","v":""},null,null,null,"В"]
[null,"Декабрь","2020-12-30",2,52,{"$f":"VLOOKUP(ИДР[[#This Row],[номер участника]],список_детей[],3)","v":""},null,null,null,"В"]
[null,"Декабрь","2020-12-31",2,53,{"$f":"VLOOKUP(ИДР[[#This Row],[номер участника]],список_детей[],3)","v":""},null,null,null,"В"]
[null,"Январь","2021-01-01",2,54,{"$f":"VLOOKUP(ИДР[[#This Row],[номер участника]],список_детей[],3)","v":""},null,null,null,"В"]
[null,"Январь","2021-01-04",2,55,{"$f":"VLOOKUP(ИДР[[#This Row],[номер участника]],список_детей[],3)","v":""},null,null,null,"В"]
[null,"Январь","2021-01-05",2,56,{"$f":"VLOOKUP(ИДР[[#This Row],[номер участника]],список_детей[],3)","v":""},null,null,null,"В"]
[null,"Январь","2021-01-06",2,57,{"$f":"VLOOKUP(ИДР[[#This Row],[номер участника]],список_детей[],3)","v":""},null,null,null,"В"]
[null,"Январь","2021-01-07",2,58,{"$f":"VLOOKUP(ИДР[[#This Row],[номер участника]],список_детей[],3)","v":""},null,null,null,"В"]
[null,"Январь","2021-01-08",2,59,{"$f":"VLOOKUP(ИДР[[#This Row],[номер участника]],список_детей[],3)","v":""},null,null,null,"В"]
[null,"Январь","2021-01-11",2,60,{"$f":"VLOOKUP(ИДР[[#This Row],[номер участника]],список_детей[],3)","v":""},null,null,null,"В"]
[null,"Январь","2021-01-12",2,61,{"$f":"VLOOKUP(ИДР[[#This Row],[номер участника]],список_детей[],3)","v":""},null,null,null,"В"]
[null,"Январь","2021-01-13",2,62,{"$f":"VLOOKUP(ИДР[[#This Row],[номер участника]],список_детей[],3)","v":""},null,null,null,"В"]
[null,"Январь","2021-01-14",2,63,{"$f":"VLOOKUP(ИДР[[#This Row],[номер участника]],список_детей[],3)","v":""},null,null,null,"В"]
[null,"Январь","2021-01-15",2,64,{"$f":"VLOOKUP(ИДР[[#This Row],[номер участника]],список_детей[],3)","v":""},null,null,null,"В"]
[null,"Январь","2021-01-18",2,65,{"$f":"VLOOKUP(ИДР[[#This Row],[номер участника]],список_детей[],3)","v":""},null,null,null,"В"]
[null,{"$f":"TEXT(C68,\"ММММ\")","v":"Январь"},"2021-01-19",2,66,{"$f":"VLOOKUP(ИДР[[#This Row],[номер участника]],список_детей[],3)","v":""},null,null,null,"В"]
[null,"Январь","2021-01-20",2,67,{"$f":"VLOOKUP(ИДР[[#This Row],[номер участника]],список_детей[],3)","v":""},null,null,null,"В"]
[null,"Январь","2021-01-21",2,68,{"$f":"VLOOKUP(ИДР[[#This Row],[номер участника]],список_детей[],3)","v":""},null,null,null,"В"]
[null,"Январь","2021-01-22",2,69,{"$f":"VLOOKUP(ИДР[[#This Row],[номер участника]],список_детей[],3)","v":""},null,null,null,"В"]
[null,"Январь","2021-01-25",2,70,{"$f":"VLOOKUP(ИДР[[#This Row],[номер участника]],список_детей[],3)","v":""},null,null,null,"В"]
[null,"Январь","2021-01-26",2,71,{"$f":"VLOOKUP(ИДР[[#This Row],[номер участника]],список_детей[],3)","v":""},null,null,null,"В"]
[null,"Январь","2021-01-27",2,72,{"$f":"VLOOKUP(ИДР[[#This Row],[номер участника]],список_детей[],3)","v":""},null,null,null,"В"]
[null,"Январь","2021-01-28",2,73,{"$f":"VLOOKUP(ИДР[[#This Row],[номер участника]],список_детей[],3)","v":""},null,null,null,"В"]
[null,"Январь","2021-01-29",2,74,{"$f":"VLOOKUP(ИДР[[#This Row],[номер участника]],список_детей[],3)","v":""},null,null,null,"В"]
[null,"Февраль","2021-02-01",2,75,{"$f":"VLOOKUP(ИДР[[#This Row],[номер участника]],список_детей[],3)","v":""},null,null,null,"В"]
[null,"Февраль","2021-02-02",2,76,{"$f":"VLOOKUP(ИДР[[#This Row],[номер участника]],список_детей[],3)","v":""},null,null,null,"В"]
[null,"Февраль","2021-02-03",2,77,{"$f":"VLOOKUP(ИДР[[#This Row],[номер участника]],список_детей[],3)","v":""},null,null,null,"В"]
[null,"Февраль","2021-02-04",2,78,{"$f":"VLOOKUP(ИДР[[#This Row],[номер участника]],список_детей[],3)","v":""},null,null,null,"В"]
[null,"Февраль","2021-02-05",2,79,{"$f":"VLOOKUP(ИДР[[#This Row],[номер участника]],список_детей[],3)","v":""},null,null,null,"В"]
[null,"Февраль","2021-02-08",2,80,{"$f":"VLOOKUP(ИДР[[#This Row],[номер участника]],список_детей[],3)","v":""},null,null,null,"В"]
[null,"Февраль","2021-02-09",2,81,{"$f":"VLOOKUP(ИДР[[#This Row],[номер участника]],список_детей[],3)","v":""},null,null,null,"В"]
[null,"Февраль","2021-02-10",2,82,{"$f":"VLOOKUP(ИДР[[#This Row],[номер участника]],список_детей[],3)","v":""},null,null,null,"В"]
[null,"Февраль","2021-02-11",2,83,{"$f":"VLOOKUP(ИДР[[#This Row],[номер участника]],список_детей[],3)","v":""},null,null,null,"В"]
[null,"Февраль","2021-02-12",2,84,{"$f":"VLOOKUP(ИДР[[#This Row],[номер участника]],список_детей[],3)","v":""},null,null,null,"В"]
[null,"Февраль","2021-02-15",2,85,{"$f":"VLOOKUP(ИДР[[#This Row],[номер участника]],список_детей[],3)","v":""},null,null,null,"В"]
[null,"Февраль","2021-02-16",2,86,{"$f":"VLOOKUP(ИДР[[#This Row],[номер участника]],список_детей[],3)","v":""},null,null,null,"В"]
[null,"Февраль","2021-02-17",2,87,{"$f":"VLOOKUP(ИДР[[#This Row],[номер участника]],список_детей[],3)","v":""},null,null,null,"В"]
[null,"Февраль","2021-02-18",2,88,{"$f":"VLOOKUP(ИДР[[#This Row],[номер участника]],список_детей[],3)","v":""},null,null,null,"В"]
[null,"Февраль","2021-02-19",2,89,{"$f":"VLOOKUP(ИДР[[#This Row],[номер участника]],список_детей[],3)","v":""},null,null,null,"В"]
[null,"Февраль","2021-02-22",2,90,{"$f":"VLOOKUP(ИДР[[#This Row],[номер участника]],список_детей[],3)","v":""},null,null,null,"В"]
[null,"Февраль","2021-02-23",2,91,{"$f":"VLOOKUP(ИДР[[#This Row],[номер участника]],список_детей[],3)","v":""},null,null,null,"В"]
[null,"Февраль","2021-02-24",2,92,{"$f":"VLOOKUP(ИДР[[#This Row],[номер участника]],список_детей[],3)","v":""},null,null,null,"В"]
[null,"Февраль","2021-02-25",2,93,{"$f":"VLOOKUP(ИДР[[#This Row],[номер участника]],список_детей[],3)","v":""},null,null,null,"В"]
[null,"Февраль","2021-02-26",2,94,{"$f":"VLOOKUP(ИДР[[#This Row],[номер участника]],список_детей[],3)","v":""},null,null,null,"В"]
[null,"Март","2021-03-01",2,95,{"$f":"VLOOKUP(ИДР[[#This Row],[номер участника]],список_детей[],3)","v":""},null,null,null,"В"]
[null,"Март","2021-03-02",2,96,{"$f":"VLOOKUP(ИДР[[#This Row],[номер участника]],список_детей[],3)","v":""},null,null,null,"В"]
[null,"Март","2021-03-03",2,97,{"$f":"VLOOKUP(ИДР[[#This Row],[номер участника]],список_детей[],3)","v":""},null,null,null,"В"]
[null,"Март","2021-03-04",2,98,{"$f":"VLOOKUP(ИДР[[#This Row],[номер участника]],список_детей[],3)","v":""},null,null,null,"В"]
[null,"Март","2021-03-05",2,99,{"$f":"VLOOKUP(ИДР[[#This Row],[номер участника]],список_детей[],3)","v":""},null,null,null,"В"]
[null,"Март","2021-03-08",2,100,{"$f":"VLOOKUP(ИДР[[#This Row],[номер участника]],список_детей[],3)","v":""},null,null,null,"В"]
[null,"Март","2021-03-09",2,101,{"$f":"VLOOKUP(ИДР[[#This Row],[номер участника]],список_детей[],3)","v":""},null,null,null,"В"]
[null,"Март","2021-03-10",2,102,{"$f":"VLOOKUP(ИДР[[#This Row],[номер участника]],список_детей[],3)","v":""},null,null,null,"В"]
[null,"Март","2021-03-11",2,103,{"$f":"VLOOKUP(ИДР[[#This Row],[номер участника]],список_детей[],3)","v":""},null,null,null,"В"]
[null,"Март","2021-03-12",2,104,{"$f":"VLOOKUP(ИДР[[#This Row],[номер участника]],список_детей[],3)","v":""},null,null,null,"В"]
[null,"Март","2021-03-15",2,105,{"$f":"VLOOKUP(ИДР[[#This Row],[номер участника]],список_детей[],3)","v":""},null,null,null,"В"]
[null,"Март","2021-03-16",2,106,{"$f":"VLOOKUP(ИДР[[#This Row],[номер участника]],список_детей[],3)","v":""},null,null,null,"В"]
[null,"Март","2021-03-17",2,107,{"$f":"VLOOKUP(ИДР[[#This Row],[номер участника]],список_детей[],3)","v":""},null,null,null,"В"]
[null,"Март","2021-03-18",2,108,{"$f":"VLOOKUP(ИДР[[#This Row],[номер участника]],список_детей[],3)","v":""},null,null,null,"В"]
[null,"Март","2021-03-19",2,109,{"$f":"VLOOKUP(ИДР[[#This Row],[номер участника]],список_детей[],3)","v":""},null,null,null,"В"]
[null,"Март","2021-03-22",2,110,{"$f":"VLOOKUP(ИДР[[#This Row],[номер участника]],список_детей[],3)","v":""},null,null,null,"В"]
[null,"Март","2021-03-23",2,111,{"$f":"VLOOKUP(ИДР[[#This Row],[номер участника]],список_детей[],3)","v":""},null,null,null,"В"]
[null,"Март","2021-03-24",2,112,{"$f":"VLOOKUP(ИДР[[#This Row],[номер участника]],список_детей[],3)","v":""},null,null,null,"В"]
[null,"Март","2021-03-25",2,113,{"$f":"VLOOKUP(ИДР[[#This Row],[номер участника]],список_детей[],3)","v":""},null,null,null,"В"]
[null,"Март","2021-03-26",2,114,{"$f":"VLOOKUP(ИДР[[#This Row],[номер участника]],список_детей[],3)","v":""},null,null,null,"В"]
[null,"Март","2021-03-29",2,115,{"$f":"VLOOKUP(ИДР[[#This Row],[номер участника]],список_детей[],3)","v":""},null,null,null,"В"]
[null,"Март","2021-03-30",2,116,{"$f":"VLOOKUP(ИДР[[#This Row],[номер участника]],список_детей[],3)","v":""},null,null,null,"В"]
[null,"Март","2021-03-31",2,117,{"$f":"VLOOKUP(ИДР[[#This Row],[номер участника]],список_детей[],3)","v":""},null,null,null,"В"]
[null,"Апрель","2021-04-01",2,118,{"$f":"VLOOKUP(ИДР[[#This Row],[номер участника]],список_детей[],3)","v":""},null,null,null,"В"]
[null,"Апрель","2021-04-02",2,119,{"$f":"VLOOKUP(ИДР[[#This Row],[номер участника]],список_детей[],3)","v":""},null,null,null,"В"]
[null,"Апрель","2021-04-05",2,120,{"$f":"VLOOKUP(ИДР[[#This Row],[номер участника]],список_детей[],3)","v":""},null,null,null,"В"]
[null,"Апрель","2021-04-06",2,121,{"$f":"VLOOKUP(ИДР[[#This Row],[номер участника]],список_детей[],3)","v":""},null,null,null,"В"]
[null,"Апрель","2021-04-07",2,122,{"$f":"VLOOKUP(ИДР[[#This Row],[номер участника]],список_детей[],3)","v":""},null,null,null,"В"]
[null,"Апрель","2021-04-08",2,123,{"$f":"VLOOKUP(ИДР[[#This Row],[номер участника]],список_детей[],3)","v":""},null,null,null,"В"]
[null,"Апрель","2021-04-09",2,124,{"$f":"VLOOKUP(ИДР[[#This Row],[номер участника]],список_детей[],3)","v":""},null,null,null,"В"]
[null,"Апрель","2021-04-12",2,125,{"$f":"VLOOKUP(ИДР[[#This Row],[номер участника]],список_детей[],3)","v":""},null,null,null,"В"]
[null,"Апрель","2021-04-13",2,126,{"$f":"VLOOKUP(ИДР[[#This Row],[номер участника]],список_детей[],3)","v":""},null,null,null,"В"]
[null,"Апрель","2021-04-14",2,127,{"$f":"VLOOKUP(ИДР[[#This Row],[номер участника]],список_детей[],3)","v":""},null,null,null,"В"]
[null,"Апрель","2021-04-15",2,128,{"$f":"VLOOKUP(ИДР[[#This Row],[номер участника]],список_детей[],3)","v":""},null,null,null,"В"]
[null,"Апрель","2021-04-16",2,129,{"$f":"VLOOKUP(ИДР[[#This Row],[номер участника]],список_детей[],3)","v":""},null,null,null,"В"]
[null,{"$f":"TEXT(C132,\"ММММ\")","v":"Апрель"},"2021-04-19",2,130,{"$f":"VLOOKUP(ИДР[[#This Row],[номер участника]],список_детей[],3)","v":""},null,null,null,"В"]
[null,"Апрель","2021-04-20",2,131,{"$f":"VLOOKUP(ИДР[[#This Row],[номер участника]],список_детей[],3)","v":""},null,null,null,"В"]
[null,"Апрель","2021-04-21",2,132,{"$f":"VLOOKUP(ИДР[[#This Row],[номер участника]],список_детей[],3)","v":""},null,null,null,"В"]
[null,"Апрель","2021-04-22",2,133,{"$f":"VLOOKUP(ИДР[[#This Row],[номер участника]],список_детей[],3)","v":""},null,null,null,"В"]
[null,"Апрель","2021-04-23",2,134,{"$f":"VLOOKUP(ИДР[[#This Row],[номер участника]],список_детей[],3)","v":""},null,null,null,"В"]
[null,"Апрель","2021-04-26",2,135,{"$f":"VLOOKUP(ИДР[[#This Row],[номер участника]],список_детей[],3)","v":""},null,null,null,"В"]
[null,"Апрель","2021-04-27",2,136,{"$f":"VLOOKUP(ИДР[[#This Row],[номер участника]],список_детей[],3)","v":""},null,null,null,"В"]
[null,"Апрель","2021-04-28",2,137,{"$f":"VLOOKUP(ИДР[[#This Row],[номер участника]],список_детей[],3)","v":""},null,null,null,"В"]
[null,"Апрель","2021-04-29",2,138,{"$f":"VLOOKUP(ИДР[[#This Row],[номер участника]],список_детей[],3)","v":""},null,null,null,"В"]
[null,"Апрель","2021-04-30",2,139,{"$f":"VLOOKUP(ИДР[[#This Row],[номер участника]],список_детей[],3)","v":""},null,null,null,"В"]
[null,"Май","2021-05-03",2,140,{"$f":"VLOOKUP(ИДР[[#This Row],[номер участника]],список_детей[],3)","v":""},null,null,null,"В"]
[null,"Май","2021-05-04",2,141,{"$f":"VLOOKUP(ИДР[[#This Row],[номер участника]],список_детей[],3)","v":""},null,null,null,"В"]
[null,"Май","2021-05-05",2,142,{"$f":"VLOOKUP(ИДР[[#This Row],[номер участника]],список_детей[],3)","v":""},null,null,null,"В"]
[null,"Май","2021-05-06",2,143,{"$f":"VLOOKUP(ИДР[[#This Row],[номер участника]],список_детей[],3)","v":""},null,null,null,"В"]
[null,"Май","2021-05-07",2,144,{"$f":"VLOOKUP(ИДР[[#This Row],[номер участника]],список_детей[],3)","v":""},null,null,null,"В"]
[null,"Май","2021-05-10",2,145,{"$f":"VLOOKUP(ИДР[[#This Row],[номер участника]],список_детей[],3)","v":""},null,null,null,"В"]
[null,"Май","2021-05-11",2,146,{"$f":"VLOOKUP(ИДР[[#This Row],[номер участника]],список_детей[],3)","v":""},null,null,null,"В"]
[null,"Май","2021-05-12",2,147,{"$f":"VLOOKUP(ИДР[[#This Row],[номер участника]],список_детей[],3)","v":""},null,null,null,"В"]
[null,"Май","2021-05-13",2,148,{"$f":"VLOOKUP(ИДР[[#This Row],[номер участника]],список_детей[],3)","v":""},null,null,null,"В"]
[null,"Май","2021-05-14",2,149,{"$f":"VLOOKUP(ИДР[[#This Row],[номер участника]],список_детей[],3)","v":""},null,null,null,"В"]
[null,"Май","2021-05-17",2,150,{"$f":"VLOOKUP(ИДР[[#This Row],[номер участника]],список_детей[],3)","v":""},null,null,null,"В"]
[null,"Май","2021-05-18",2,151,{"$f":"VLOOKUP(ИДР[[#This Row],[номер участника]],список_детей[],3)","v":""},null,null,null,"В"]
[null,"Май","2021-05-19",2,152,{"$f":"VLOOKUP(ИДР[[#This Row],[номер участника]],список_детей[],3)","v":""},null,null,null,"В"]
[null,"Май","2021-05-20",2,153,{"$f":"VLOOKUP(ИДР[[#This Row],[номер участника]],список_детей[],3)","v":""},null,null,null,"В"]
[null,"Май","2021-05-21",2,154,{"$f":"VLOOKUP(ИДР[[#This Row],[номер участника]],список_детей[],3)","v":""},null,null,null,"В"]
[null,"Май","2021-05-24",2,155,{"$f":"VLOOKUP(ИДР[[#This Row],[номер участника]],список_детей[],3)","v":""},null,null,null,"В"]
[null,"Май","2021-05-25",2,156,{"$f":"VLOOKUP(ИДР[[#This Row],[номер участника]],список_детей[],3)","v":""},null,null,null,"В"]
[null,"Май","2021-05-26",2,157,{"$f":"VLOOKUP(ИДР[[#This Row],[номер участника]],список_детей[],3)","v":""},null,null,null,"В"]
[null,"Май","2021-05-27",2,158,{"$f":"VLOOKUP(ИДР[[#This Row],[номер участника]],список_детей[],3)","v":""},null,null,null,"В"]
[null,"Май","2021-05-28",2,159,{"$f":"VLOOKUP(ИДР[[#This Row],[номер участника]],список_детей[],3)","v":""},null,null,null,"В"]
[null,"Май","2021-05-31",2,160,{"$f":"VLOOKUP(ИДР[[#This Row],[номер участника]],список_детей[],3)","v":""},null,null,null,"В"]
[null,"Июнь","2021-06-01",2,161,{"$f":"VLOOKUP(ИДР[[#This Row],[номер участника]],список_детей[],3)","v":""},null,null,null,"В"]
[null,"Июнь","2021-06-02",2,162,{"$f":"VLOOKUP(ИДР[[#This Row],[номер участника]],список_детей[],3)","v":""},null,null,null,"В"]
[null,"Июнь","2021-06-03",2,163,{"$f":"VLOOKUP(ИДР[[#This Row],[номер участника]],список_детей[],3)","v":""},null,null,null,"В"]
[null,"Июнь","2021-06-04",2,164,{"$f":"VLOOKUP(ИДР[[#This Row],[номер участника]],список_детей[],3)","v":""},null,null,null,"В"]
[null,"Июнь","2021-06-07",2,165,{"$f":"VLOOKUP(ИДР[[#This Row],[номер участника]],список_детей[],3)","v":""},null,null,null,"В"]
[null,"Июнь","2021-06-08",2,166,{"$f":"VLOOKUP(ИДР[[#This Row],[номер участника]],список_детей[],3)","v":""},null,null,null,"В"]
[null,"Июнь","2021-06-09",2,167,{"$f":"VLOOKUP(ИДР[[#This Row],[номер участника]],список_детей[],3)","v":""},null,null,null,"В"]
[null,"Июнь","2021-06-10",2,168,{"$f":"VLOOKUP(ИДР[[#This Row],[номер участника]],список_детей[],3)","v":""},null,null,null,"В"]
[null,"Июнь","2021-06-11",2,169,{"$f":"VLOOKUP(ИДР[[#This Row],[номер участника]],список_детей[],3)","v":""},null,null,null,"В"]
[null,"Июнь","2021-06-14",2,170,{"$f":"VLOOKUP(ИДР[[#This Row],[номер участника]],список_детей[],3)","v":""},null,null,null,"В"]
[null,"Июнь","2021-06-15",2,171,{"$f":"VLOOKUP(ИДР[[#This Row],[номер участника]],список_детей[],3)","v":""},null,null,null,"В"]
[null,"Июнь","2021-06-16",2,172,{"$f":"VLOOKUP(ИДР[[#This Row],[номер участника]],список_детей[],3)","v":""},null,null,null,"В"]
[null,"Июнь","2021-06-17",2,173,{"$f":"VLOOKUP(ИДР[[#This Row],[номер участника]],список_детей[],3)","v":""},null,null,null,"В"]
[null,"Июнь","2021-06-18",2,174,{"$f":"VLOOKUP(ИДР[[#This Row],[номер участника]],список_детей[],3)","v":""},null,null,null,"В"]
[null,"Июнь","2021-06-21",2,175,{"$f":"VLOOKUP(ИДР[[#This Row],[номер участника]],список_детей[],3)","v":""},null,null,null,"В"]
[null,"Июнь","2021-06-22",2,176,{"$f":"VLOOKUP(ИДР[[#This Row],[номер участника]],список_детей[],3)","v":""},null,null,null,"В"]
[null,"Июнь","2021-06-23",2,177,{"$f":"VLOOKUP(ИДР[[#This Row],[номер участника]],список_детей[],3)","v":""},null,null,null,"В"]
[null,"Июнь","2021-06-24",2,178,{"$f":"VLOOKUP(ИДР[[#This Row],[номер участника]],список_детей[],3)","v":""},null,null,null,"В"]
[null,"Июнь","2021-06-25",2,179,{"$f":"VLOOKUP(ИДР[[#This Row],[номер участника]],список_детей[],3)","v":""},null,null,null,"В"]
[null,"Июнь","2021-06-28",2,180,{"$f":"VLOOKUP(ИДР[[#This Row],[номер участника]],список_детей[],3)","v":""},null,null,null,"В"]
[null,"Июнь","2021-06-29",2,181,{"$f":"VLOOKUP(ИДР[[#This Row],[номер участника]],список_детей[],3)","v":""},null,null,null,"В"]
[null,"Июнь","2021-06-30",2,182,{"$f":"VLOOKUP(ИДР[[#This Row],[номер участника]],список_детей[],3)","v":""},null,null,null,"В"]
[null,"Июль","2021-07-01",2,183,{"$f":"VLOOKUP(ИДР[[#This Row],[номер участника]],список_детей[],3)","v":""},null,null,null,"В"]
[null,"Июль","2021-07-02",2,184,{"$f":"VLOOKUP(ИДР[[#This Row],[номер участника]],список_детей[],3)","v":""},null,null,null,"В"]
[null,"Июль","2021-07-05",2,185,{"$f":"VLOOKUP(ИДР[[#This Row],[номер участника]],список_детей[],3)","v":""},null,null,null,"В"]
[null,"Июль","2021-07-06",2,186,{"$f":"VLOOKUP(ИДР[[#This Row],[номер участника]],список_детей[],3)","v":""},null,null,null,"В"]
[null,"Июль","2021-07-07",2,187,{"$f":"VLOOKUP(ИДР[[#This Row],[номер участника]],список_детей[],3)","v":""},null,null,null,"В"]
[null,"Июль","2021-07-08",2,188,{"$f":"VLOOKUP(ИДР[[#This Row],[номер участника]],список_детей[],3)","v":""},null,null,null,"В"]
[null,"Июль","2021-07-09",2,189,{"$f":"VLOOKUP(ИДР[[#This Row],[номер участника]],список_детей[],3)","v":""},null,null,null,"В"]
[null,"Июль","2021-07-12",2,190,{"$f":"VLOOKUP(ИДР[[#This Row],[номер участника]],список_детей[],3)","v":""},null,null,null,"В"]
[null,"Июль","2021-07-13",2,191,{"$f":"VLOOKUP(ИДР[[#This Row],[номер участника]],список_детей[],3)","v":""},null,null,null,"В"]
[null,"Июль","2021-07-14",2,192,{"$f":"VLOOKUP(ИДР[[#This Row],[номер участника]],список_детей[],3)","v":""},null,null,null,"В"]
[null,"Июль","2021-07-15",2,193,{"$f":"VLOOKUP(ИДР[[#This Row],[номер участника]],список_детей[],3)","v":""},null,null,null,"В"]
[null,{"$f":"TEXT(C196,\"ММММ\")","v":"Июль"},"2021-07-16",2,194,{"$f":"VLOOKUP(ИДР[[#This Row],[номер участника]],список_детей[],3)","v":""},null,null,null,"В"]
[null,"Июль","2021-07-19",2,195,{"$f":"VLOOKUP(ИДР[[#This Row],[номер участника]],список_детей[],3)","v":""},null,null,null,"В"]
[null,"Июль","2021-07-20",2,196,{"$f":"VLOOKUP(ИДР[[#This Row],[номер участника]],список_детей[],3)","v":""},null,null,null,"В"]
[null,"Июль","2021-07-21",2,197,{"$f":"VLOOKUP(ИДР[[#This Row],[номер участника]],список_детей[],3)","v":""},null,null,null,"В"]
[null,"Июль","2021-07-22",2,198,{"$f":"VLOOKUP(ИДР[[#This Row],[номер участника]],список_детей[],3)","v":""},null,null,null,"В"]
[null,"Июль","2021-07-23",2,199,{"$f":"VLOOKUP(ИДР[[#This Row],[номер участника]],список_детей[],3)","v":""},null,null,null,"В"]
[null,"Июль","2021-07-26",2,200,{"$f":"VLOOKUP(ИДР[[#This Row],[номер участника]],список_детей[],3)","v":""},null,null,null,"В"]
[null,"Июль","2021-07-27",2,201,{"$f":"VLOOKUP(ИДР[[#This Row],[номер участника]],список_детей[],3)","v":""},null,null,null,"В"]
[null,"Июль","2021-07-28",2,202,{"$f":"VLOOKUP(ИДР[[#This Row],[номер участника]],список_детей[],3)","v":""},null,null,null,"В"]
[null,"Июль","2021-07-29",2,203,{"$f":"VLOOKUP(ИДР[[#This Row],[номер участника]],список_детей[],3)","v":""},null,null,null,"В"]
[null,"Июль","2021-07-30",2,204,{"$f":"VLOOKUP(ИДР[[#This Row],[номер участника]],список_детей[],3)","v":""},null,null,null,"В"]
[null,"Август","2021-08-02",2,205,{"$f":"VLOOKUP(ИДР[[#This Row],[номер участника]],список_детей[],3)","v":""},null,null,null,"В"]
[null,"Август","2021-08-03",2,206,{"$f":"VLOOKUP(ИДР[[#This Row],[номер участника]],список_детей[],3)","v":""},null,null,null,"В"]
[null,"Август","2021-08-04",2,207,{"$f":"VLOOKUP(ИДР[[#This Row],[номер участника]],список_детей[],3)","v":""},null,null,null,"В"]
[null,"Август","2021-08-05",2,208,{"$f":"VLOOKUP(ИДР[[#This Row],[номер участника]],список_детей[],3)","v":""},null,null,null,"В"]
[null,"Август","2021-08-06",2,209,{"$f":"VLOOKUP(ИДР[[#This Row],[номер участника]],список_детей[],3)","v":""},null,null,null,"В"]
[null,"Август","2021-08-09",2,210,{"$f":"VLOOKUP(ИДР[[#This Row],[номер участника]],список_детей[],3)","v":""},null,null,null,"В"]
[null,"Август","2021-08-10",2,211,{"$f":"VLOOKUP(ИДР[[#This Row],[номер участника]],список_детей[],3)","v":""},null,null,null,"В"]
[null,"Август","2021-08-11",2,212,{"$f":"VLOOKUP(ИДР[[#This Row],[номер участника]],список_детей[],3)","v":""},null,null,null,"В"]
[null,"Август","2021-08-12",2,213,{"$f":"VLOOKUP(ИДР[[#This Row],[номер участника]],список_детей[],3)","v":""},null,null,null,"В"]
[null,"Август","2021-08-13",2,214,{"$f":"VLOOKUP(ИДР[[#This Row],[номер участника]],список_детей[],3)","v":""},null,null,null,"В"]
[null,"Август","2021-08-16",2,215,{"$f":"VLOOKUP(ИДР[[#This Row],[номер участника]],список_детей[],3)","v":""},null,null,null,"В"]
[null,"Август","2021-08-17",2,216,{"$f":"VLOOKUP(ИДР[[#This Row],[номер участника]],список_детей[],3)","v":""},null,null,null,"В"]
[null,"Август","2021-08-18",2,217,{"$f":"VLOOKUP(ИДР[[#This Row],[номер участника]],список_детей[],3)","v":""},null,null,null,"В"]
[null,"Август","2021-08-19",2,218,{"$f":"VLOOKUP(ИДР[[#This Row],[номер участника]],список_детей[],3)","v":""},null,null,null,"В"]
[null,"Август","2021-08-20",2,219,{"$f":"VLOOKUP(ИДР[[#This Row],[номер участника]],список_детей[],3)","v":""},null,null,null,"В"]
[null,"Август","2021-08-23",2,220,{"$f":"VLOOKUP(ИДР[[#This Row],[номер участника]],список_детей[],3)","v":""},null,null,null,"В"]
[null,"Август","2021-08-24",2,221,{"$f":"VLOOKUP(ИДР[[#This Row],[номер участника]],список_детей[],3)","v":""},null,null,null,"В"]
[null,"Август","2021-08-25",2,222,{"$f":"VLOOKUP(ИДР[[#This Row],[номер участника]],список_детей[],3)","v":""},null,null,null,"В"]
[null,"Август","2021-08-26",2,223,{"$f":"VLOOKUP(ИДР[[#This Row],[номер участника]],список_детей[],3)","v":""},null,null,null,"В"]
[null,"Август","2021-08-27",2,224,{"$f":"VLOOKUP(ИДР[[#This Row],[номер участника]],список_детей[],3)","v":""},null,null,null,"В"]
[null,"Август","2021-08-30",2,225,{"$f":"VLOOKUP(ИДР[[#This Row],[номер участника]],список_детей[],3)","v":""},null,null,null,"В"]
[null,"Август","2021-08-31",2,226,{"$f":"VLOOKUP(ИДР[[#This Row],[номер участника]],список_детей[],3)","v":""},null,null,null,"В"]
[null,"Сентябрь","2021-09-01",2,227,{"$f":"VLOOKUP(ИДР[[#This Row],[номер участника]],список_детей[],3)","v":""},null,null,null,"В"]
[null,"Сентябрь","2021-09-02",2,228,{"$f":"VLOOKUP(ИДР[[#This Row],[номер участника]],список_детей[],3)","v":""},null,null,null,"В"]
[null,"Сентябрь","2021-09-03",2,229,{"$f":"VLOOKUP(ИДР[[#This Row],[номер участника]],список_детей[],3)","v":""},null,null,null,"В"]
[null,"Сентябрь","2021-09-06",2,230,{"$f":"VLOOKUP(ИДР[[#This Row],[номер участника]],список_детей[],3)","v":""},null,null,null,"В"]
[null,"Сентябрь","2021-09-07",2,231,{"$f":"VLOOKUP(ИДР[[#This Row],[номер участника]],список_детей[],3)","v":""},null,null,null,"В"]
[null,"Сентябрь","2021-09-08",2,232,{"$f":"VLOOKUP(ИДР[[#This Row],[номер участника]],список_детей[],3)","v":""},null,null,null,"В"]
[null,"Сентябрь","2021-09-09",2,233,{"$f":"VLOOKUP(ИДР[[#This Row],[номер участника]],список_детей[],3)","v":""},null,null,null,"В"]
[null,"Сентябрь","2021-09-10",2,234,{"$f":"VLOOKUP(ИДР[[#This Row],[номер участника]],список_детей[],3)","v":""},null,null,null,"В"]
[null,"Сентябрь","2021-09-13",2,235,{"$f":"VLOOKUP(ИДР[[#This Row],[номер участника]],список_детей[],3)","v":""},null,null,null,"В"]
[null,"Сентябрь","2021-09-14",2,236,{"$f":"VLOOKUP(ИДР[[#This Row],[номер участника]],список_детей[],3)","v":""},null,null,null,"В"]
[null,"Сентябрь","2021-09-15",2,237,{"$f":"VLOOKUP(ИДР[[#This Row],[номер участника]],список_детей[],3)","v":""},null,null,null,"В"]
[null,"Сентябрь","2021-09-16",2,238,{"$f":"VLOOKUP(ИДР[[#This Row],[номер участника]],список_детей[],3)","v":""},null,null,null,"В"]
[null,"Сентябрь","2021-09-17",2,239,{"$f":"VLOOKUP(ИДР[[#This Row],[номер участника]],список_детей[],3)","v":""},null,null,null,"В"]
[null,"Сентябрь","2021-09-20",2,240,{"$f":"VLOOKUP(ИДР[[#This Row],[номер участника]],список_детей[],3)","v":""},null,null,null,"В"]
[null,"Сентябрь","2021-09-21",2,241,{"$f":"VLOOKUP(ИДР[[#This Row],[номер участника]],список_детей[],3)","v":""},null,null,null,"В"]
[null,"Сентябрь","2021-09-22",2,242,{"$f":"VLOOKUP(ИДР[[#This Row],[номер участника]],список_детей[],3)","v":""},null,null,null,"В"]
[null,"Сентябрь","2021-09-23",2,243,{"$f":"VLOOKUP(ИДР[[#This Row],[номер участника]],список_детей[],3)","v":""},null,null,null,"В"]
[null,"Сентябрь","2021-09-24",2,244,{"$f":"VLOOKUP(ИДР[[#This Row],[номер участника]],список_детей[],3)","v":""},null,null,null,"В"]
[null,"Сентябрь","2021-09-27",2,245,{"$f":"VLOOKUP(ИДР[[#This Row],[номер участника]],список_детей[],3)","v":""},null,null,null,"В"]
[null,"Сентябрь","2021-09-28",2,246,{"$f":"VLOOKUP(ИДР[[#This Row],[номер участника]],список_детей[],3)","v":""},null,null,null,"В"]
[null,"Сентябрь","2021-09-29",2,247,{"$f":"VLOOKUP(ИДР[[#This Row],[номер участника]],список_детей[],3)","v":""},null,null,null,"В"]
[null,"Сентябрь","2021-09-30",2,248,{"$f":"VLOOKUP(ИДР[[#This Row],[номер участника]],список_детей[],3)","v":""},null,null,null,"В"]
[null,"Октябрь","2021-10-01",2,249,{"$f":"VLOOKUP(ИДР[[#This Row],[номер участника]],список_детей[],3)","v":""},null,null,null,"В"]
[null,"Октябрь","2021-10-04",2,250,{"$f":"VLOOKUP(ИДР[[#This Row],[номер участника]],список_детей[],3)","v":""},null,null,null,"В"]
[null,"Октябрь","2021-10-05",2,251,{"$f":"VLOOKUP(ИДР[[#This Row],[номер участника]],список_детей[],3)","v":""},null,null,null,"В"]
[null,"Октябрь","2021-10-06",2,252,{"$f":"VLOOKUP(ИДР[[#This Row],[номер участника]],список_детей[],3)","v":""},null,null,null,"В"]
[null,"Октябрь","2021-10-07",2,253,{"$f":"VLOOKUP(ИДР[[#This Row],[номер участника]],список_детей[],3)","v":""},null,null,null,"В"]
[null,"Октябрь","2021-10-08",2,254,{"$f":"VLOOKUP(ИДР[[#This Row],[номер участника]],список_детей[],3)","v":""},null,null,null,"В"]
[null,"Октябрь","2021-10-11",2,255,{"$f":"VLOOKUP(ИДР[[#This Row],[номер участника]],список_детей[],3)","v":""},null,null,null,"В"]
[null,"Октябрь","2021-10-12",2,256,{"$f":"VLOOKUP(ИДР[[#This Row],[номер участника]],список_детей[],3)","v":""},null,null,null,"В"]
[null,"Октябрь","2021-10-13",2,257,{"$f":"VLOOKUP(ИДР[[#This Row],[номер участника]],список_детей[],3)","v":""},null,null,null,"В"]
[null,{"$f":"TEXT(C260,\"ММММ\")","v":"Октябрь"},"2021-10-14",2,258,{"$f":"VLOOKUP(ИДР[[#This Row],[номер участника]],список_детей[],3)","v":""},null,null,null,"В"]
[null,"Октябрь","2021-10-15",2,259,{"$f":"VLOOKUP(ИДР[[#This Row],[номер участника]],список_детей[],3)","v":""},null,null,null,"В"]
[null,"Октябрь","2021-10-18",2,260,{"$f":"VLOOKUP(ИДР[[#This Row],[номер участника]],список_детей[],3)","v":""},null,null,null,"В"]
[null,"Октябрь","2021-10-19",2,261,{"$f":"VLOOKUP(ИДР[[#This Row],[номер участника]],список_детей[],3)","v":""},null,null,null,"В"]
[null,"Октябрь","2021-10-20",2,262,{"$f":"VLOOKUP(ИДР[[#This Row],[номер участника]],список_детей[],3)","v":""},null,null,null,"В"]
[null,"Октябрь","2021-10-21",2,263,{"$f":"VLOOKUP(ИДР[[#This Row],[номер участника]],список_детей[],3)","v":""},null,null,null,"В"]
[null,"Октябрь","2021-10-22",2,264,{"$f":"VLOOKUP(ИДР[[#This Row],[номер участника]],список_детей[],3)","v":""},null,null,null,"В"]
[null,"Октябрь","2021-10-25",2,265,{"$f":"VLOOKUP(ИДР[[#This Row],[номер участника]],список_детей[],3)","v":""},null,null,null,"В"]
[null,"Октябрь","2021-10-26",2,266,{"$f":"VLOOKUP(ИДР[[#This Row],[номер участника]],список_детей[],3)","v":""},null,null,null,"В"]
[null,"Октябрь","2021-10-27",2,267,{"$f":"VLOOKUP(ИДР[[#This Row],[номер участника]],список_детей[],3)","v":""},null,null,null,"В"]
[null,"Октябрь","2021-10-28",2,268,{"$f":"VLOOKUP(ИДР[[#This Row],[номер участника]],список_детей[],3)","v":""},null,null,null,"В"]
[null,"Октябрь","2021-10-29",2,269,{"$f":"VLOOKUP(ИДР[[#This Row],[номер участника]],список_детей[],3)","v":""},null,null,null,"В"]
[null,"Ноябрь","2021-11-01",2,270,{"$f":"VLOOKUP(ИДР[[#This Row],[номер участника]],список_детей[],3)","v":""},null,null,null,"В"]
[null,"Ноябрь","2021-11-02",2,271,{"$f":"VLOOKUP(ИДР[[#This Row],[номер участника]],список_детей[],3)","v":""},null,null,null,"В"]
[null,"Ноябрь","2021-11-03",2,272,{"$f":"VLOOKUP(ИДР[[#This Row],[номер участника]],список_детей[],3)","v":""},null,null,null,"В"]
[null,"Ноябрь","2021-11-04",2,273,{"$f":"VLOOKUP(ИДР[[#This Row],[номер участника]],список_детей[],3)","v":""},null,null,null,"В"]
[null,"Ноябрь","2021-11-05",2,274,{"$f":"VLOOKUP(ИДР[[#This Row],[номер участника]],список_детей[],3)","v":""},null,null,null,"В"]
[null,"Ноябрь","2021-11-08",2,275,{"$f":"VLOOKUP(ИДР[[#This Row],[номер участника]],список_детей[],3)","v":""},null,null,null,"В"]
[null,"Ноябрь","2021-11-09",2,276,{"$f":"VLOOKUP(ИДР[[#This Row],[номер участника]],список_детей[],3)","v":""},null,null,null,"В"]
[null,"Ноябрь","2021-11-10",2,277,{"$f":"VLOOKUP(ИДР[[#This Row],[номер участника]],список_детей[],3)","v":""},null,null,null,"В"]
[null,"Ноябрь","2021-11-11",2,278,{"$f":"VLOOKUP(ИДР[[#This Row],[номер участника]],список_детей[],3)","v":""},null,null,null,"В"]
[null,"Ноябрь","2021-11-12",2,279,{"$f":"VLOOKUP(ИДР[[#This Row],[номер участника]],список_детей[],3)","v":""},null,null,null,"В"]
[null,"Ноябрь","2021-11-15",2,280,{"$f":"VLOOKUP(ИДР[[#This Row],[номер участника]],список_детей[],3)","v":""},null,null,null,"В"]
[null,"Ноябрь","2021-11-16",2,281,{"$f":"VLOOKUP(ИДР[[#This Row],[номер участника]],список_детей[],3)","v":""},null,null,null,"В"]
[null,"Ноябрь","2021-11-17",2,282,{"$f":"VLOOKUP(ИДР[[#This Row],[номер участника]],список_детей[],3)","v":""},null,null,null,"В"]
[null,"Ноябрь","2021-11-18",2,283,{"$f":"VLOOKUP(ИДР[[#This Row],[номер участника]],список_детей[],3)","v":""},null,null,null,"В"]
[null,"Ноябрь","2021-11-19",2,284,{"$f":"VLOOKUP(ИДР[[#This Row],[номер участника]],список_детей[],3)","v":""},null,null,null,"В"]
[null,"Ноябрь","2021-11-22",2,285,{"$f":"VLOOKUP(ИДР[[#This Row],[номер участника]],список_детей[],3)","v":""},null,null,null,"В"]
[null,"Ноябрь","2021-11-23",2,286,{"$f":"VLOOKUP(ИДР[[#This Row],[номер участника]],список_детей[],3)","v":""},null,null,null,"В"]
[null,"Ноябрь","2021-11-24",2,287,{"$f":"VLOOKUP(ИДР[[#This Row],[номер участника]],список_детей[],3)","v":""},null,null,null,"В"]
[null,"Ноябрь","2021-11-25",2,288,{"$f":"VLOOKUP(ИДР[[#This Row],[номер участника]],список_детей[],3)","v":""},null,null,null,"В"]
[null,"Ноябрь","2021-11-26",2,289,{"$f":"VLOOKUP(ИДР[[#This Row],[номер участника]],список_детей[],3)","v":""},null,null,null,"В"]
[null,"Ноябрь","2021-11-29",2,290,{"$f":"VLOOKUP(ИДР[[#This Row],[номер участника]],список_детей[],3)","v":""},null,null,null,"В"]
[null,"Ноябрь","2021-11-30",2,291,{"$f":"VLOOKUP(ИДР[[#This Row],[номер участника]],список_детей[],3)","v":""},null,null,null,"В"]
[null,"Декабрь","2021-12-01",2,292,{"$f":"VLOOKUP(ИДР[[#This Row],[номер участника]],список_детей[],3)","v":""},null,null,null,"В"]
[null,"Декабрь","2021-12-02",2,293,{"$f":"VLOOKUP(ИДР[[#This Row],[номер участника]],список_детей[],3)","v":""},null,null,null,"В"]
[null,"Декабрь","2021-12-03",2,294,{"$f":"VLOOKUP(ИДР[[#This Row],[номер участника]],список_детей[],3)","v":""},null,null,null,"В"]
[null,"Декабрь","2021-12-06",2,295,{"$f":"VLOOKUP(ИДР[[#This Row],[номер участника]],список_детей[],3)","v":""},null,null,null,"В"]
[null,"Итог"]

{"sheet":"ИКРР","index":3,"n_rows":58,"n_cols":39,"rows_kept":58,"cut":false,"hidden":false,"merged":[[25,1,25,5],[1,6,1,25],[13,33,13,34],[14,33,14,34],[15,33,15,34],[16,33,16,34],[24,1,24,5]]}
["Индивидуальная коррекционно-развивающая работа",null,null,null,null,null,null,null,null,null,null,null,null,null,null,null,null,null,null,null,null,null,null,null,null,null,null,null,null,null,null,null,null,null,"подстветка","вкл"]
[null,null,null,null,null,null,"Даты проведения занятий"]
[null,null,null,null,null,null,{"$f":"TEXT(G4,\"ДДД\")","v":"Чт"},"Пт","Пн","Вт","Ср","Чт","Пт","Пн","Вт","Ср","Чт","Пт","Пн","Вт","Ср","Чт","Пт","Пн","Вт","Ср"]
["номер","Код ребенка","пол","возраст","группа","Программа\n","2020-10-01","2020-10-02","2020-10-05","2020-10-06","2020-10-07","2020-10-08","2020-10-09","2020-10-12","2020-10-13","2020-10-14","2020-10-15","2020-10-16","2020-10-19","2020-10-20","2020-10-21","2020-10-22","2020-10-23","2020-10-26","2020-10-27","2020-10-28","дни посещения","дни отсутствия (н)","дни отсутствия (у)","отработка",null,{"$f":"[2]!Таблица8[[#Headers],[сентябрь]]","v":"сентябрь"},"Возраст","подсчет по годам","КОЛ-ВО ЗАНЯТИЙ","по нарушению","кол-во"]
[1,{"$f":"VLOOKUP(A5,список_детей[],3)","v":"ЯГМ"},{"$f":"VLOOKUP(A5,список_детей[],5)","v":"д"},null,null,null,null,"п","п",null,null,null,"п","у",null,null,null,"н","п",null,null,null,"п","н",null,"о",{"$f":"IF($D$5:$D$24=\"1-2 года\",COUNTIF(G5:Z5,$AG$14),IF($D$5:$D$24=\"2-3 года\",COUNTIF(G5:Z5,$AG$14),IF($D$5:$D$24=\"3-4 года\",COUNTIF(G5:Z5,AG14),IF($D$5:$D$24=\"4-5 лет\",COUNTIF(G5:Z5,AG14),IF($D$5:$D$24=\"5-6 лет\",COUNTIF(G5:Z5,AG14),IF($D$5:$D$24=\"6-7 лет\",COUNTIF(G5:Z5,AG14)))))))","v":false},{"$f":"IF($D$5:$D$24=\"1-2 года\",COUNTIF(G5:Z5,$AG$15),IF($D$5:$D$24=\"2-3 года\",COUNTIF(G5:Z5,$AG$15),IF($D$5:$D$24=\"3-4 года\",COUNTIF(G5:Z5,$AG$15),IF($D$5:$D$24=\"4-5 лет\",COUNTIF(G5:Z5,$AG$15),IF($D$5:$D$24=\"5-6 лет\",COUNTIF(G5:Z5,$AG$15),IF($D$5:$D$24=\"6-7 лет\",COUNTIF(G5:Z5,$AG$15)))))))","v":false},{"$f":"IF($D$5:$D$24=\"1-2 года\",COUNTIF(G5:Z5,$AG$16),IF($D$5:$D$24=\"2-3 года\",COUNTIF(G5:Z5,$AG$16),IF($D$5:$D$24=\"3-4 года\",COUNTIF(G5:Z5,$AG$16),IF($D$5:$D$24=\"4-5 лет\",COUNTIF(G5:Z5,$AG$16),IF($D$5:$D$24=\"5-6 лет\",COUNTIF(G5:Z5,$AG$16),IF($D$5:$D$24=\"6-7 лет\",COUNTIF(G5:Z5,$AG$16)))))))","v":false},{"$f":"IF($D$5:$D$24=\"1-2 года\",COUNTIF(G5:Z5,$AG$17),IF($D$5:$D$24=\"2-3 года\",COUNTIF(G5:Z5,$AG$17),IF($D$5:$D$24=\"3-4 года\",COUNTIF(G5:Z5,$AG$17),IF($D$5:$D$24=\"4-5 лет\",COUNTIF(G5:Z5,$AG$17),IF($D$5:$D$24=\"5-6 лет\",COUNTIF(G5:Z5,$AG$17),IF($D$5:$D$24=\"6-7 лет\",COUNTIF(G5:Z5,$AG$17)))))))","v":false},null,null,"1-2 года",{"$f":"COUNTIF($D$5:D24,ИКРР!$AG5)","v":0},{"$f":"SUMIF($D$5:$D$24,AG5,$AA$5:$AA$24)","v":0},"ТНР",{"$f":"SUMIF(программа,[2]данные!F2,$AA$5:$AA$24)","v":{"$error":"#VALUE!"}},null,{"$f":"MATCH(A5,A5:A24,)","v":1}]
[2,{"$f":"VLOOKUP(A6,список_детей[],3)","v":"НАП"},{"$f":"VLOOKUP(A6,список_детей[],5)","v":"д"},null,null,null,"п",null,null,"п",null,"п",null,null,"п",null,"п",null,null,"п",null,"п",null,null,"п",null,{"$f":"IF($D$5:$D$24=\"1-2 года\",COUNTIF(G6:Z6,$AG$14),IF($D$5:$D$24=\"2-3 года\",COUNTIF(G6:Z6,$AG$14),IF($D$5:$D$24=\"3-4 года\",COUNTIF(G6:Z6,$AG$14),IF($D$5:$D$24=\"4-5 лет\",COUNTIF(G6:Z6,$AG$14),IF($D$5:$D$24=\"5-6 лет\",COUNTIF(G6:Z6,$AG$14),IF($D$5:$D$24=\"6-7 лет\",COUNTIF(G6:Z6,$AG$14)))))))","v":false},false,false,false,null,null,"2-3 года",{"$f":"COUNTIF($D$5:D25,ИКРР!$AG6)","v":0},0,"ЗПР",{"$f":"SUMIF(программа,[2]данные!F3,$AA$5:$AA$24)","v":{"$error":"#VALUE!"}}]
[3,{"$f":"VLOOKUP(A7,список_детей[],3)","v":"БДМ"},{"$f":"VLOOKUP(A7,список_детей[],5)","v":"м"},null,null,null,"п",null,"п",null,null,"н",null,"п",null,"о","п",null,"п",null,null,"н",null,"п",null,null,false,false,false,false,null,null,"3-4 года",{"$f":"COUNTIF($D$5:D26,ИКРР!$AG7)","v":0},0,"ОДА",{"$f":"SUMIF(программа,[2]данные!F4,$AA$5:$AA$24)","v":{"$error":"#VALUE!"}}]
[4,{"$f":"VLOOKUP(A8,список_детей[],3)","v":"ДВА"},{"$f":"VLOOKUP(A8,список_детей[],5)","v":"м"},null,null,null,null,"п",null,null,"п",null,"у",null,"о","п",null,null,null,null,"н",null,"у",null,null,"п",false,false,false,false,null,null,"4-5 лет",{"$f":"COUNTIF($D$5:D27,ИКРР!$AG8)","v":0},0,"НЗ",{"$f":"SUMIF(программа,[2]данные!F5,$AA$5:$AA$24)","v":{"$error":"#VALUE!"}}]
[5,{"$f":"VLOOKUP(A9,список_детей[],3)","v":"НПГ"},{"$f":"VLOOKUP(A9,список_детей[],5)","v":"м"},null,null,null,"п","п",null,null,null,"у","н","о",null,null,"н","п","о",null,null,"п","п",null,null,null,false,false,false,false,null,null,"5-6 лет",{"$f":"COUNTIF($D$5:D28,ИКРР!$AG9)","v":0},0," УО",{"$f":"SUMIF(программа,[2]данные!F6,$AA$5:$AA$24)","v":{"$error":"#VALUE!"}}]
[6,{"$f":"VLOOKUP(A10,список_детей[],3)","v":"ПМС"},{"$f":"VLOOKUP(A10,список_детей[],5)","v":"д"},null,null,null,"п",null,"п",null,null,"п",null,"п",null,null,"п",null,"н",null,null,"у",null,"у",null,null,false,false,false,false,null,null,"6-7 лет",{"$f":"COUNTIF($D$5:D29,ИКРР!$AG10)","v":0},0,"РАС",{"$f":"SUMIF(программа,[2]данные!F7,$AA$5:$AA$24)","v":{"$error":"#VALUE!"}}]
[7,{"$f":"VLOOKUP(A11,список_детей[],3)","v":"РГА"},{"$f":"VLOOKUP(A11,список_детей[],5)","v":"д"},null,null,null,"п",null,null,"п",null,"п",null,null,"п",null,"п",null,null,"п",null,"п",null,null,"п",null,false,false,false,false,null,null,"ИТОГ",{"$f":"SUM(AH5:AH10)","v":0},{"$f":"SUM(AI5:AI10)","v":0},"НС",{"$f":"SUMIF(программа,[2]данные!F8,$AA$5:$AA$24)","v":{"$error":"#VALUE!"}}]
[8,{"$f":"VLOOKUP(A12,список_детей[],3)","v":"КОЛ"},{"$f":"VLOOKUP(A12,список_детей[],5)","v":"д"},null,null,null,"у",null,"п",null,null,"п",null,"п",null,null,"п",null,"н",null,null,"п",null,"н","о",null,false,false,false,false,null,null,null,null,null,"ОО",{"$f":"SUMIF(программа,[2]данные!F9,$AA$5:$AA$24)","v":{"$error":"#VALUE!"}}]
[9,{"$f":"VLOOKUP(A13,список_детей[],3)","v":"ЯМП"},{"$f":"VLOOKUP(A13,список_детей[],5)","v":"д"},null,null,null,null,"у",null,null,"н",null,"п",null,null,"п",null,"п",null,null,"п",null,"п",null,null,"п",false,false,false,false]
[10,{"$f":"VLOOKUP(A14,список_детей[],3)","v":"НЕЗ"},{"$f":"VLOOKUP(A14,список_детей[],5)","v":"м"},null,null,null,null,"п",null,"п",null,null,"п",null,"п",null,null,"п",null,"у",null,null,"н","о","п",null,false,false,false,false,null,null,"п","присутствовал"]
[11,{"$f":"VLOOKUP(A15,список_детей[],3)","v":"ЖАИ"},{"$f":"VLOOKUP(A15,список_детей[],5)","v":"м"},null,null,null,null,"п","п",null,null,null,"п","п",null,null,null,"п","п",null,null,null,null,"п",null,null,false,false,false,false,null,null,"н","отсутствовал"]
[12,{"$f":"VLOOKUP(A16,список_детей[],3)","v":"АВМ"},{"$f":"VLOOKUP(A16,список_детей[],5)","v":"м"},null,null,null,"п",null,null,"п",null,"п",null,null,"п",null,"п",null,null,"п",null,"п",null,null,"п",null,false,false,false,false,null,null,"у","уважительная причина"]
[13,{"$f":"VLOOKUP(A17,список_детей[],3)","v":"ЧКД"},{"$f":"VLOOKUP(A17,список_детей[],5)","v":"д"},null,null,null,"у",null,"н",null,null,"н",null,"у","о",null,"п",null,"п",null,null,"п",null,"п",null,null,false,false,false,false,null,null,"о","отработка"]
[14,{"$f":"VLOOKUP(A18,список_детей[],3)","v":"ССЯ"},{"$f":"VLOOKUP(A18,список_детей[],5)","v":"м"},null,null,null,null,"н",null,"о","у",null,"у",null,null,"у",null,"п",null,null,"п",null,"п",null,null,"п",false,false,false,false]
[15,{"$f":"VLOOKUP(A19,список_детей[],3)","v":"ГРЧ"},{"$f":"VLOOKUP(A19,список_детей[],5)","v":"д"},null,null,null,"п","п",null,null,null,"п","п",null,null,null,"п","п",null,null,null,"п","п",null,null,null,false,false,false,false,null,null,"д",{"$f":"COUNTIF(C5:C24,AG19)","v":11},{"$f":"TEXT($G$4,\"ММММ\")","v":"Октябрь"}]
[16,{"$f":"VLOOKUP(A20,список_детей[],3)","v":"ЭАН"},{"$f":"VLOOKUP(A20,список_детей[],5)","v":"д"},null,null,null,"н",null,"н",null,null,"н",null,"н",null,null,"н",null,"у","о","о","у","о","п",null,null,false,false,false,false,null,null,"м",{"$f":"COUNTIF(C6:C25,AG20)","v":9},{"$f":"TEXT($G$4,\"ММММ\")","v":"Октябрь"}]
[17,{"$f":"VLOOKUP(A21,список_детей[],3)","v":"ЯГЕ"},{"$f":"VLOOKUP(A21,список_детей[],5)","v":"д"},null,null,null,"п",null,null,"п",null,"п",null,null,"п",null,"п",null,null,"п",null,"п",null,null,"п",null,false,false,false,false,null,null,null,null,"Октябрь"]
[18,{"$f":"VLOOKUP(A22,список_детей[],3)","v":"СМП"},{"$f":"VLOOKUP(A22,список_детей[],5)","v":"м"},null,null,null,"п",null,"п",null,null,"п",null,"п",null,null,"п",null,"п",null,null,"п",null,"п",null,null,false,false,false,false,null,null,null,null,"Октябрь"]
[19,{"$f":"VLOOKUP(A23,список_детей[],3)","v":"ЮЛВ"},{"$f":"VLOOKUP(A23,список_детей[],5)","v":"д"},null,null,null,null,"п",null,null,"н",null,"у",null,null,"у",null,"п",null,null,"п",null,"п",null,null,"п",false,false,false,false,null,null,null,null,"Октябрь"]
[20,{"$f":"VLOOKUP(A24,список_детей[],3)","v":"БЛИ"},{"$f":"VLOOKUP(A24,список_детей[],5)","v":"м"},null,null,null,null,"п",null,"н",null,null,"н",null,"п",null,null,"у",null,"п",null,null,"п","о","п","о",false,false,false,false]
[null,"итого присутствовало",null,null,null,null,{"$f":"COUNTIF(G5:G24,\"п\")","v":9},8,6,5,1,8,5,5,6,2,10,7,5,5,3,9,7,5,6,4,{"$f":"SUM(AA5:AA24)","v":0}]
[null,"итого отсутствовало",null,null,null,null,{"$f":"COUNTIF(G5:G24,\"н\")","v":1},1,2,1,2,3,2,1,0,0,2,1,2,0,1,1,1,2,0,0]
[]
[null,null,null,null,1,{"$f":"VLOOKUP(E28,[2]!список_детей[#Data],3,1)","v":{"$error":"#REF!"}},"Пн","Пт"]
[null,null,null,null,2,{"$f":"VLOOKUP(E29,[2]!список_детей[#Data],3,1)","v":{"$error":"#REF!"}},"Вт","Чт"]
[null,null,null,null,3,{"$f":"VLOOKUP(E30,[2]!список_детей[#Data],3,1)","v":{"$error":"#REF!"}},"Пн","Чт"]
[null,null,null,null,4,{"$f":"VLOOKUP(E31,[2]!список_детей[#Data],3,1)","v":{"$error":"#REF!"}},"Ср","Пт"]
[null,null,null,null,5,{"$f":"VLOOKUP(E32,[2]!список_детей[#Data],3,1)","v":{"$error":"#REF!"}},"Чт","Пт"]
[null,null,null,null,6,{"$f":"VLOOKUP(E33,[2]!список_детей[#Data],3,1)","v":{"$error":"#REF!"}},"Пн","Чт"]
[null,null,null,null,7,{"$f":"VLOOKUP(E34,[2]!список_детей[#Data],3,1)","v":{"$error":"#REF!"}},"Вт","Чт"]
[null,null,null,null,8,{"$f":"VLOOKUP(E35,[2]!список_детей[#Data],3,1)","v":{"$error":"#REF!"}},"Пн","Чт"]
[null,null,null,null,9,{"$f":"VLOOKUP(E36,[2]!список_детей[#Data],3,1)","v":{"$error":"#REF!"}},"Ср","Пт"]
[null,null,null,null,10,{"$f":"VLOOKUP(E37,[2]!список_детей[#Data],3,1)","v":{"$error":"#REF!"}},"Вт","ПТ"]
[null,null,null,null,11,{"$f":"VLOOKUP(E38,[2]!список_детей[#Data],3,1)","v":{"$error":"#REF!"}},"Пн","Пт"]
[null,null,null,null,12,{"$f":"VLOOKUP(E39,[2]!список_детей[#Data],3,1)","v":{"$error":"#REF!"}},"Вт","Чт"]
[null,null,null,null,13,{"$f":"VLOOKUP(E40,[2]!список_детей[#Data],3,1)","v":{"$error":"#REF!"}},"Пн","Чт"]
[null,null,null,null,14,{"$f":"VLOOKUP(E41,[2]!список_детей[#Data],3,1)","v":{"$error":"#REF!"}},"Ср","Пт"]
[null,null,null,null,15,{"$f":"VLOOKUP(E42,[2]!список_детей[#Data],3,1)","v":{"$error":"#REF!"}},"Чт","Пт"]
[null,null,null,null,16,{"$f":"VLOOKUP(E43,[2]!список_детей[#Data],3,1)","v":{"$error":"#REF!"}},"Пн","Чт"]
[null,null,null,null,17,{"$f":"VLOOKUP(E44,[2]!список_детей[#Data],3,1)","v":{"$error":"#REF!"}},"Вт","Чт"]
[null,null,null,null,18,{"$f":"VLOOKUP(E45,[2]!список_детей[#Data],3,1)","v":{"$error":"#REF!"}},"Пн","Чт"]
[null,null,null,null,19,{"$f":"VLOOKUP(E46,[2]!список_детей[#Data],3,1)","v":{"$error":"#REF!"}},"Ср","Пт"]
[null,null,null,null,20,{"$f":"VLOOKUP(E47,[2]!список_детей[#Data],3,1)","v":{"$error":"#REF!"}},"Вт","ПТ"]
[null,null,null,null,21,{"$f":"VLOOKUP(E48,[2]!список_детей[#Data],3,1)","v":{"$error":"#REF!"}},"Пн","Пт"]
[null,null,null,null,22,{"$f":"VLOOKUP(E49,[2]!список_детей[#Data],3,1)","v":{"$error":"#REF!"}},"Вт","Чт"]
[null,null,null,null,23,{"$f":"VLOOKUP(E50,[2]!список_детей[#Data],3,1)","v":{"$error":"#REF!"}},"Пн","Чт"]
[null,null,null,null,24,{"$f":"VLOOKUP(E51,[2]!список_детей[#Data],3,1)","v":{"$error":"#REF!"}},"Ср","Пт"]
[null,null,null,null,25,{"$f":"VLOOKUP(E52,[2]!список_детей[#Data],3,1)","v":{"$error":"#REF!"}},"Чт","Пт"]
[null,null,null,null,26,{"$f":"VLOOKUP(E53,[2]!список_детей[#Data],3,1)","v":{"$error":"#REF!"}},"Пн","Чт"]
[null,null,null,null,27,{"$f":"VLOOKUP(E54,[2]!список_детей[#Data],3,1)","v":{"$error":"#REF!"}},"Вт","Чт"]
[null,null,null,null,28,{"$f":"VLOOKUP(E55,[2]!список_детей[#Data],3,1)","v":{"$error":"#REF!"}},"Пн","Чт"]
[null,null,null,null,29,{"$f":"VLOOKUP(E56,[2]!список_детей[#Data],3,1)","v":{"$error":"#REF!"}},"Ср","Пт"]
[null,null,null,null,30,{"$f":"VLOOKUP(E57,[2]!список_детей[#Data],3,1)","v":{"$error":"#REF!"}},"Вт","ПТ"]
[null,null,null,null,31,{"$f":"VLOOKUP(E58,[2]!список_детей[#Data],3,1)","v":{"$error":"#REF!"}},"Пн","Пт"]

{"sheet":"ГКРР","index":4,"n_rows":58,"n_cols":39,"rows_kept":58,"cut":false,"hidden":false,"merged":[[0,1,3,1],[0,3,0,28],[0,29,3,29],[1,2,3,2],[1,3,3,3],[1,4,3,4],[1,5,3,5],[1,6,3,6],[1,7,1,28]]}
[null,"номер",null,"Групповая коррекционно-развивающая работа",null,null,null,null,null,null,null,null,null,null,null,null,null,null,null,null,null,null,null,null,null,null,null,null,null,"проведено за месяц",null,null,"подстветку","вкл"]
[null,null,"группа","код ребенка","код нарушения","возраст","Программа\n сопровождения","Даты проведения занятий"]
[null,null,null,null,null,null,null,{"$f":"TEXT(H4,\"ДДД\")","v":"Чт"},"Пт","Пн","Вт","Ср","Чт","Пт","Пн","Вт","Ср","Чт","Пт","Пн","Вт","Ср","Чт","Пт","Пн","Вт","Ср","Чт","Пт"]
[null,null,null,null,null,null,null,"2020-10-01","2020-10-02","2020-10-05","2020-10-06","2020-10-07","2020-10-08","2020-10-09","2020-10-12","2020-10-13","2020-10-14","2020-10-15","2020-10-16","2020-10-19","2020-10-20","2020-10-21","2020-10-22","2020-10-23","2020-10-26","2020-10-27","2020-10-28","2020-10-29","2020-10-30",null,null,{"$f":"[1]!Таблица8[[#Headers],[октябрь]]","v":{"$error":"#REF!"}},"подсчет по годам","кол-во детей","кол-во занятий",null,"группы","кол-во занятий","кол-во детей"]
[null,1,{"$f":"VLOOKUP(B5,список_детей[],2)","v":10},{"$f":"VLOOKUP(B5,список_детей[],3)","v":"ЯГМ"},{"$f":"VLOOKUP(B5,список_детей[],9)","v":"ТНР"},{"$f":"VLOOKUP(B5,список_детей[],4)","v":"5-6 лет"},null,"п",null,null,"п",null,"п",null,null,null,"п",null,null,"п",null,null,"н",null,null,null,null,null,null,{"$f":"COUNTA(H5:AC5)","v":6},null,null,"1-2 года",{"$f":"COUNTIF($F$5:$F$43,Таблица1313[[#This Row],[подсчет по годам]])","v":0},{"$f":"SUMIF($F$5:$F$9,AG5,$AD$5:$AD$9)","v":0},null,"ТНР",{"$f":"SUMIF($E$5:$E$38,AK5,$AD$5:$AD$43)","v":75},{"$f":"COUNTIF($E$5:$E$38,Таблица17[[#This Row],[группы]])","v":13}]
[null,2,{"$f":"VLOOKUP(B6,список_детей[],2)","v":10},{"$f":"VLOOKUP(B6,список_детей[],3)","v":"НАП"},{"$f":"VLOOKUP(B6,список_детей[],9)","v":"ТНР"},{"$f":"VLOOKUP(B6,список_детей[],4)","v":"5-6 лет"},null,"п",null,null,"п",null,"п",null,null,null,"п",null,null,"п",null,null,"н",null,null,null,null,null,null,6,null,null,"2-3 года",{"$f":"COUNTIF($F$5:$F$43,Таблица1313[[#This Row],[подсчет по годам]])","v":0},0,null,"ЗПР",{"$f":"SUMIF($E$5:$E$38,AK6,$AD$5:$AD$43)","v":0},{"$f":"COUNTIF($E$5:$E$38,Таблица17[[#This Row],[группы]])","v":2}]
[null,3,{"$f":"VLOOKUP(B7,список_детей[],2)","v":10},{"$f":"VLOOKUP(B7,список_детей[],3)","v":"БДМ"},{"$f":"VLOOKUP(B7,список_детей[],9)","v":"ТНР"},{"$f":"VLOOKUP(B7,список_детей[],4)","v":"5-6 лет"},null,"п",null,null,"п",null,"п",null,null,null,"п",null,null,"п",null,null,"н",null,null,null,null,null,null,6,null,null,"3-4 года",{"$f":"COUNTIF($F$5:$F$43,Таблица1313[[#This Row],[подсчет по годам]])","v":0},0,null,"ОО",{"$f":"SUMIF($E$5:$E$38,AK7,$AD$5:$AD$43)","v":0},{"$f":"COUNTIF($E$5:$E$38,Таблица17[[#This Row],[группы]])","v":0}]
[null,4,{"$f":"VLOOKUP(B8,список_детей[],2)","v":10},{"$f":"VLOOKUP(B8,список_детей[],3)","v":"ДВА"},{"$f":"VLOOKUP(B8,список_детей[],9)","v":"ТНР"},{"$f":"VLOOKUP(B8,список_детей[],4)","v":"5-6 лет"},null,"п",null,null,"п",null,"п",null,null,null,"п",null,null,"п",null,null,"н",null,null,null,null,null,null,6,null,null,"4-5 лет",{"$f":"COUNTIF($F$5:$F$43,Таблица1313[[#This Row],[подсчет по годам]])","v":0},0]
[null,5,{"$f":"VLOOKUP(B9,список_детей[],2)","v":10},{"$f":"VLOOKUP(B9,список_детей[],3)","v":"НПГ"},{"$f":"VLOOKUP(B9,список_детей[],9)","v":"ТНР"},{"$f":"VLOOKUP(B9,список_детей[],4)","v":"5-6 лет"},null,"п",null,null,"п",null,"п",null,null,null,"п",null,null,"п",null,null,"н",null,null,null,null,null,null,6,null,null,"5-6 лет",{"$f":"COUNTIF($F$5:$F$43,Таблица1313[[#This Row],[подсчет по годам]])","v":36},30]
[null,6,{"$f":"VLOOKUP(B10,список_детей[],2)","v":10},{"$f":"VLOOKUP(B10,список_детей[],3)","v":"ПМС"},{"$f":"VLOOKUP(B10,список_детей[],9)","v":"ТНР"},{"$f":"VLOOKUP(B10,список_детей[],4)","v":"5-6 лет"},null,"п",null,null,"п",null,"п",null,null,null,"п",null,null,"п",null,null,null,null,null,null,null,null,null,5,null,null,"6-7 лет",{"$f":"COUNTIF($F$5:$F$43,Таблица1313[[#This Row],[подсчет по годам]])","v":0},0]
[null,7,{"$f":"VLOOKUP(B11,список_детей[],2)","v":10},{"$f":"VLOOKUP(B11,список_детей[],3)","v":"РГА"},{"$f":"VLOOKUP(B11,список_детей[],9)","v":"ТНР"},{"$f":"VLOOKUP(B11,список_детей[],4)","v":"5-6 лет"},null,null,null,null,null,null,null,null,null,"п",null,null,"п",null,"п",null,null,null,"п",null,null,"п",null,5,null,null,"ИТОГ",{"$f":"SUM(AH5:AH10)","v":36},{"$f":"SUM(AI5:AI10)","v":30}]
[null,8,{"$f":"VLOOKUP(B12,список_детей[],2)","v":10},{"$f":"VLOOKUP(B12,список_детей[],3)","v":"КОЛ"},{"$f":"VLOOKUP(B12,список_детей[],9)","v":"ТНР"},{"$f":"VLOOKUP(B12,список_детей[],4)","v":"5-6 лет"},null,null,null,null,"н",null,null,null,null,"п",null,null,"п",null,"п",null,null,null,"п",null,null,"п",null,6,null,null,"Среднее",{"$f":"AVERAGE(H44:AC44)","v":0}]
[null,9,{"$f":"VLOOKUP(B13,список_детей[],2)","v":10},{"$f":"VLOOKUP(B13,список_детей[],3)","v":"ЯМП"},{"$f":"VLOOKUP(B13,список_детей[],9)","v":"ТНР"},{"$f":"VLOOKUP(B13,список_детей[],4)","v":"5-6 лет"},null,null,null,null,"н",null,null,null,null,"п",null,null,"п",null,"п",null,null,null,"п",null,null,"п",null,6]
[null,1,{"$f":"VLOOKUP(B14,список_детей[],2)","v":10},{"$f":"VLOOKUP(B14,список_детей[],3)","v":"ЯГМ"},{"$f":"VLOOKUP(B14,список_детей[],9)","v":"ТНР"},{"$f":"VLOOKUP(B14,список_детей[],4)","v":"5-6 лет"},null,null,null,null,"н",null,null,null,null,"п",null,null,"п",null,"п",null,null,null,"п",null,null,"п",null,6]
[null,11,{"$f":"VLOOKUP(B15,список_детей[],2)","v":10},{"$f":"VLOOKUP(B15,список_детей[],3)","v":"ЖАИ"},{"$f":"VLOOKUP(B15,список_детей[],9)","v":"ТНР"},{"$f":"VLOOKUP(B15,список_детей[],4)","v":"5-6 лет"},null,null,null,null,"н",null,null,null,null,"п",null,null,"п",null,"п",null,null,null,"п",null,null,"п",null,6]
[null,12,{"$f":"VLOOKUP(B16,список_детей[],2)","v":10},{"$f":"VLOOKUP(B16,список_детей[],3)","v":"АВМ"},{"$f":"VLOOKUP(B16,список_детей[],9)","v":"ТНР"},{"$f":"VLOOKUP(B16,список_детей[],4)","v":"5-6 лет"},null,null,null,null,"н",null,null,null,null,"п",null,null,"п",null,"п",null,null,null,"п",null,null,"п",null,6]
[null,13,{"$f":"VLOOKUP(B17,список_детей[],2)","v":10},{"$f":"VLOOKUP(B17,список_детей[],3)","v":"ЧКД"},{"$f":"VLOOKUP(B17,список_детей[],9)","v":"ТНР"},{"$f":"VLOOKUP(B17,список_детей[],4)","v":"5-6 лет"},null,"п",null,null,"п",null,"п",null,null,null,"п",null,null,"п",null,null,null,null,null,null,null,null,null,5]
[null,14,{"$f":"VLOOKUP(B18,список_детей[],2)","v":15},{"$f":"VLOOKUP(B18,список_детей[],3)","v":"ССЯ"},{"$f":"VLOOKUP(B18,список_детей[],9)","v":"УО"},{"$f":"VLOOKUP(B18,список_детей[],4)","v":"5-6 лет"},null,"п",null,null,"п",null,"п",null,null,null,"п",null,null,"п",null,null,null,null,null,null,null,null,null,5]
[null,15,{"$f":"VLOOKUP(B19,список_детей[],2)","v":15},{"$f":"VLOOKUP(B19,список_детей[],3)","v":"ГРЧ"},{"$f":"VLOOKUP(B19,список_детей[],9)","v":"УО"},{"$f":"VLOOKUP(B19,список_детей[],4)","v":"5-6 лет"},null,"п",null,null,"п",null,"п",null,null,null,"п",null,null,"п",null,null,null,null,null,null,null,null,null,5]
[null,16,{"$f":"VLOOKUP(B20,список_детей[],2)","v":15},{"$f":"VLOOKUP(B20,список_детей[],3)","v":"ЭАН"},{"$f":"VLOOKUP(B20,список_детей[],9)","v":"УО"},{"$f":"VLOOKUP(B20,список_детей[],4)","v":"5-6 лет"},null,"п",null,null,"п",null,"п",null,null,null,"п",null,null,"п",null,"п",null,null,"п",null,"п",null,null,8]
[null,17,{"$f":"VLOOKUP(B21,список_детей[],2)","v":15},{"$f":"VLOOKUP(B21,список_детей[],3)","v":"ЯГЕ"},{"$f":"VLOOKUP(B21,список_детей[],9)","v":"УО"},{"$f":"VLOOKUP(B21,список_детей[],4)","v":"5-6 лет"},null,"п",null,null,"п",null,"п",null,null,null,"п",null,null,"п",null,"п",null,null,"п",null,"п",null,null,8]
[null,18,{"$f":"VLOOKUP(B22,список_детей[],2)","v":15},{"$f":"VLOOKUP(B22,список_детей[],3)","v":"СМП"},{"$f":"VLOOKUP(B22,список_детей[],9)","v":"УО"},{"$f":"VLOOKUP(B22,список_детей[],4)","v":"5-6 лет"},null,"п",null,null,"п",null,"п",null,null,null,"п",null,null,"п",null,"п",null,null,"п",null,"п",null,null,8]
[null,19,{"$f":"VLOOKUP(B23,список_детей[],2)","v":15},{"$f":"VLOOKUP(B23,список_детей[],3)","v":"ЮЛВ"},{"$f":"VLOOKUP(B23,список_детей[],9)","v":"УО"},{"$f":"VLOOKUP(B23,список_детей[],4)","v":"5-6 лет"},null,null,null,null,null,null,null,null,null,null,null,null,null,null,null,"п",null,null,"п",null,"п",null,null,3]
[null,20,{"$f":"VLOOKUP(B24,список_детей[],2)","v":15},{"$f":"VLOOKUP(B24,список_детей[],3)","v":"БЛИ"},{"$f":"VLOOKUP(B24,список_детей[],9)","v":"УО"},{"$f":"VLOOKUP(B24,список_детей[],4)","v":"5-6 лет"},null,null,null,null,null,null,null,null,null,null,null,null,null,null,null,"п",null,null,"п",null,"п",null,null,3]
[null,21,{"$f":"VLOOKUP(B25,список_детей[],2)","v":15},{"$f":"VLOOKUP(B25,список_детей[],3)","v":"ЛРТ"},{"$f":"VLOOKUP(B25,список_детей[],9)","v":"ОДА"},{"$f":"VLOOKUP(B25,список_детей[],4)","v":"5-6 лет"},null,null,null,null,null,null,null,null,null,null,null,null,null,null,null,null,null,null,null,null,null,null,null,0]
[null,22,{"$f":"VLOOKUP(B26,список_детей[],2)","v":13},{"$f":"VLOOKUP(B26,список_детей[],3)","v":"ШАЧ"},{"$f":"VLOOKUP(B26,список_детей[],9)","v":"ОДА"},{"$f":"VLOOKUP(B26,список_детей[],4)","v":"5-6 лет"},null,null,null,null,null,null,null,null,null,null,null,null,null,null,null,null,null,null,null,null,null,null,null,0]
[null,23,{"$f":"VLOOKUP(B27,список_детей[],2)","v":13},{"$f":"VLOOKUP(B27,список_детей[],3)","v":"ЮПГ"},{"$f":"VLOOKUP(B27,список_детей[],9)","v":"ОДА"},{"$f":"VLOOKUP(B27,список_детей[],4)","v":"5-6 лет"},null,null,null,null,null,null,null,null,null,null,null,null,null,null,null,null,null,null,null,null,null,null,null,0]
[null,24,{"$f":"VLOOKUP(B28,список_детей[],2)","v":13},{"$f":"VLOOKUP(B28,список_детей[],3)","v":"КСФ"},{"$f":"VLOOKUP(B28,список_детей[],9)","v":"ОДА"},{"$f":"VLOOKUP(B28,список_детей[],4)","v":"5-6 лет"},null,null,null,null,null,null,null,null,null,null,null,null,null,null,null,null,null,null,null,null,null,null,null,0]
[null,25,{"$f":"VLOOKUP(B29,список_детей[],2)","v":13},{"$f":"VLOOKUP(B29,список_детей[],3)","v":"ЛАЛ"},{"$f":"VLOOKUP(B29,список_детей[],9)","v":"ОДА"},{"$f":"VLOOKUP(B29,список_детей[],4)","v":"5-6 лет"},null,null,null,null,null,null,null,null,null,null,null,null,null,null,null,null,null,null,null,null,null,null,null,0]
[null,28,{"$f":"VLOOKUP(B30,список_детей[],2)","v":5},{"$f":"VLOOKUP(B30,список_детей[],3)","v":"УВЕ"},{"$f":"VLOOKUP(B30,список_детей[],9)","v":"ЗПР"},{"$f":"VLOOKUP(B30,список_детей[],4)","v":"5-6 лет"},null,null,null,null,null,null,null,null,null,null,null,null,null,null,null,null,null,null,null,null,null,null,null,0]
[null,30,{"$f":"VLOOKUP(B31,список_детей[],2)","v":5},{"$f":"VLOOKUP(B31,список_детей[],3)","v":"МНД"},{"$f":"VLOOKUP(B31,список_детей[],9)","v":"ЗПР"},{"$f":"VLOOKUP(B31,список_детей[],4)","v":"5-6 лет"},null,null,null,null,null,null,null,null,null,null,null,null,null,null,null,null,null,null,null,null,null,null,null,0]
[null,34,{"$f":"VLOOKUP(B32,список_детей[],2)","v":0},{"$f":"VLOOKUP(B32,список_детей[],3)","v":"ЭОФ"},{"$f":"VLOOKUP(B32,список_детей[],9)","v":0},{"$f":"VLOOKUP(B32,список_детей[],4)","v":"5-6 лет"},null,null,null,null,null,null,null,null,null,null,null,null,null,null,null,null,null,null,null,null,null,null,null,0]
[null,null,{"$f":"VLOOKUP(B33,список_детей[],2)","v":{"$error":"#N/A"}},{"$f":"VLOOKUP(B33,список_детей[],3)","v":{"$error":"#N/A"}},{"$f":"VLOOKUP(B33,список_детей[],9)","v":{"$error":"#N/A"}},{"$f":"VLOOKUP(B33,список_детей[],4)","v":{"$error":"#N/A"}}]
[null,null,{"$f":"VLOOKUP(B34,список_детей[],2)","v":{"$error":"#N/A"}},{"$f":"VLOOKUP(B34,список_детей[],3)","v":{"$error":"#N/A"}},{"$f":"VLOOKUP(B34,список_детей[],9)","v":{"$error":"#N/A"}},{"$f":"VLOOKUP(B34,список_детей[],4)","v":{"$error":"#N/A"}}]
[null,null,{"$f":"VLOOKUP(B35,список_детей[],2)","v":{"$error":"#N/A"}},{"$f":"VLOOKUP(B35,список_детей[],3)","v":{"$error":"#N/A"}},{"$f":"VLOOKUP(B35,список_детей[],9)","v":{"$error":"#N/A"}},{"$f":"VLOOKUP(B35,список_детей[],4)","v":{"$error":"#N/A"}}]
[null,42,{"$f":"VLOOKUP(B36,список_детей[],2)","v":0},{"$f":"VLOOKUP(B36,список_детей[],3)","v":""},{"$f":"VLOOKUP(B36,список_детей[],9)","v":0},{"$f":"VLOOKUP(B36,список_детей[],4)","v":"5-6 лет"}]
[null,43,{"$f":"VLOOKUP(B37,список_детей[],2)","v":0},{"$f":"VLOOKUP(B37,список_детей[],3)","v":""},{"$f":"VLOOKUP(B37,список_детей[],9)","v":0},{"$f":"VLOOKUP(B37,список_детей[],4)","v":"5-6 лет"}]
[null,45,{"$f":"VLOOKUP(B38,список_детей[],2)","v":0},{"$f":"VLOOKUP(B38,список_детей[],3)","v":""},{"$f":"VLOOKUP(B38,список_детей[],9)","v":0},{"$f":"VLOOKUP(B38,список_детей[],4)","v":"5-6 лет"}]
[null,46,{"$f":"VLOOKUP(B39,список_детей[],2)","v":0},{"$f":"VLOOKUP(B39,список_детей[],3)","v":""},{"$f":"VLOOKUP(B39,список_детей[],9)","v":0},{"$f":"VLOOKUP(B39,список_детей[],4)","v":"5-6 лет"},null,null,null,null,null,null,null,null,null,null,null,null,null,null,null,null,null,null,null,null,null,null,null,{"$f":"COUNTA(H39:AC39)","v":0}]
[null,47,{"$f":"VLOOKUP(B40,список_детей[],2)","v":0},{"$f":"VLOOKUP(B40,список_детей[],3)","v":""},{"$f":"VLOOKUP(B40,список_детей[],9)","v":0},{"$f":"VLOOKUP(B40,список_детей[],4)","v":"5-6 лет"},null,null,null,null,null,null,null,null,null,null,null,null,null,null,null,null,null,null,null,null,null,null,null,{"$f":"COUNTA(H40:AC40)","v":0}]
[null,50,{"$f":"VLOOKUP(B41,список_детей[],2)","v":0},{"$f":"VLOOKUP(B41,список_детей[],3)","v":""},{"$f":"VLOOKUP(B41,список_детей[],9)","v":0},{"$f":"VLOOKUP(B41,список_детей[],4)","v":"5-6 лет"},null,null,null,null,null,null,null,null,null,null,null,null,null,null,null,null,null,null,null,null,null,null,null,{"$f":"COUNTA(H41:AC41)","v":0}]
[null,51,{"$f":"VLOOKUP(B42,список_детей[],2)","v":0},{"$f":"VLOOKUP(B42,список_детей[],3)","v":""},{"$f":"VLOOKUP(B42,список_детей[],9)","v":0},{"$f":"VLOOKUP(B42,список_детей[],4)","v":"5-6 лет"},null,null,null,null,null,null,null,null,null,null,null,null,null,null,null,null,null,null,null,null,null,null,null,{"$f":"COUNTA(H42:AC42)","v":0}]
[null,52,{"$f":"VLOOKUP(B43,список_детей[],2)","v":0},{"$f":"VLOOKUP(B43,список_детей[],3)","v":""},{"$f":"VLOOKUP(B43,список_детей[],9)","v":0},{"$f":"VLOOKUP(B43,список_детей[],4)","v":"5-6 лет"},null,null,null,null,null,null,null,null,null,null,null,null,null,null,null,null,null,null,null,null,null,null,null,{"$f":"COUNTA(H43:AC43)","v":0}]
[null,null,null,null,null,null,null,{"$f":"SUM(H5:H43)","v":0},0,0,0,0,0,0,0,0,0,0,0,0,0,0,0,0,0,0,0,0,0,{"$f":"SUM(AD5:AD9)","v":30}]
[null,null,null,null,null,null,null,null,null,null,null,null,null,null,null,null,null,null,null,null,null,null,null,null,null,null,null,null,{"$f":"SUM(H44:AC44)","v":0}]
[]
[]
[]
[]
[]
[]
[]
[]
[null,null,null,null,null,null,10,"Вт","Чт"]
[null,null,null,null,null,null,13,"Вт","Пт"]
[null,null,null,null,null,null,14,"Чт"]
[null,null,null,null,null,null,15,"Ср","Чт",null,null,null,null,null,null,null,null,null,null,null,null,{"$f":"MATCH(H$3,INDEX($54:$203,MATCH($D5,$G$54:$G$203,),),)","v":{"$error":"#N/A"}}]
[null,null,null,null,null,null,17,"пн","чт"]